Workbook

Sheet RELEVÉS
A1: 08:48:00 | K1: J | N1: N | Q1: W | AL1: AG | AO1: AK | AV1: AX | AW1: AX
B2: Pression mini | E2: Pression maxi | H2: Température ressentie | K2: Température mini | N2: Température maxi | Q2: Vent en Km/h | AB2: Humidité H% | AL2: Pluie | AO2: Temps de pluie | AV2: Sonde Soleil
B3: mini | D3: heure | E3: maxi | G3: heure | H3: mini | J3: heure | K3: mini | M3: heure | N3: maxi | P3: heure | Q3: maxi | S3: Heure | U3: Moyenne | X3: Sens | Z3: Sens | AB3: Mini | AD3: Heure | AF3: Maxi | AH3: Heure | AJ3: Moy | AK3: mm | AM3: Heure | AO3: AK | AV3: =W1450/60/1440 -> 0.06388888889
AO4: 0 à 7h | AQ4: 7 à 12h | AS4: 12 à 19h | AU4: 19h à 24h
B5: =MIN(H9:H1448) -> 1019.7 | D5: =VLOOKUP($B5,$H$9:$Q$1448,10,0) -> 00:01:00 | E5: =MAX(H9:H1448) -> 1024.2 | G5: =VLOOKUP($E5,$H$9:$Q$1448,10,0) -> 09:08:00 | H5: =MAX($B$9:$B$1448) -> 15.7 | J5: =VLOOKUP($H5,$D$9:$Q$1448,14,0) -> 09:06:00 | K5: =MIN($B$9:$B$1448) -> 12.8 | M5: =VLOOKUP($K5,$B$9:$Q$1448,16,0) -> 06:34:00 | N5: =MAX(B9:B1448) -> 15.7 | P5: =VLOOKUP($N5,$B$9:$Q$1448,16,0) -> 09:06:00 | Q5: =MAX(E9:F1448) -> 13 | S5: =VLOOKUP($Q5,$F$9:$Q$1448,12,0) -> 08:51:00 | U5: =AVERAGE(F9:F1448) -> 4.450724638 | Z5: ONO | AB5: =MIN(C9:C1448) -> 76 | AF5: =MAX(C9:C1448) -> 86 | AH5: =VLOOKUP($AF5,$C$9:$Q$1448,15,0) -> 06:28:00 | AJ5: =AVERAGE(C9:C1448) -> 81.38586957 | AK5: =MAX($K$9:$K$1448) -> 0 | AM5: =(U1450/60)/1440 -> 00:00:00 | AO5: =AO6+AQ6 -> 00:00:00 | AS5: =AS6+AU6 -> 00:00:00
AO6: =SUM(U9:U428)/60/1440 -> 00:00:00 | AQ6: =SUM(U429:U728)/60/1440 -> 00:00:00 | AS6: =SUM(U729:U1148)/60/1440 -> 00:00:00 | AU6: =SUM(U1148:U1448)/60/1440 -> 00:00:00
B7: 5 | C7: 6 | D7: 8 | E7: 9 | F7: 10 | G7: 11 | H7: 13 | I7: 14 | J7: 15 | K7: 16
B8: T° Ext | C8: H% Ext | D8: Ressentie | E8: Vent | F8: Rafale | G8: Sens | H8: Pression | I8: Lux | J8: Pluie 1h | K8: Jour | L8: Semaine | M8: Mois | N8: Année | O8: CH1 | P8: CH2 | Q8: Heures | R8: Date | S8: Maxi | T8: Graph | U8: Pluie | W8: Soleil | Z8: Soleil | AK8: Fin | AM8: Début
B9: 13.8 | C9: 77 | D9: 13.8 | E9: 1.8 | F9: 3.6 | G9: 38 | H9: 1020 | I9: 0 | J9: 0 | K9: 0 | L9: 11.7 | M9: 15.2 | N9: 138.7 | O9: 11.5 | P9: 12 | Q9: 00:00:00 | R9: 20220525 | Z9: N | AD9: 0 | AE9: 0
B10: 13.8 | C10: 77 | D10: 13.8 | E10: 4 | F10: 5.4 | G10: 4 | H10: 1019.7 | I10: 0 | J10: 0 | K10: 0 | L10: 11.7 | M10: 15.2 | N10: 138.7 | O10: 11.5 | P10: 12 | Q10: 00:01:00 | U10: =IF(J10>0,60,"") ->  | Z10: N | AB10: 0 | AD10: 11 | AE10: 22
B11: 13.8 | C11: 77 | D11: 13.8 | E11: 0.4 | F11: 1.8 | G11: 33 | H11: 1020.1 | I11: 0 | J11: 0 | K11: 0 | L11: 11.7 | M11: 15.2 | N11: 138.7 | O11: 11.5 | P11: 12 | Q11: 00:02:00 | U11: =IF(J11>0,60,"") ->  | Z11: NNE | AB11: 22.5 | AD11: =AB11+$AD$10 -> 33.5 | AE11: 45 | AM11: Aide mémoire
B12: 13.7 | C12: 77 | D12: 13.7 | E12: 1.8 | F12: 1.8 | G12: 136 | H12: 1019.9 | I12: 0 | J12: 0 | K12: 0 | L12: 11.7 | M12: 15.2 | N12: 138.7 | O12: 11.5 | P12: 12 | Q12: 00:03:00 | U12: =IF(J12>0,60,"") ->  | Z12: NE | AB12: 45 | AD12: 56 | AE12: 67 | AK12: Pluie | AM12: =SOMME(K9:K1448)
B13: 13.7 | C13: 77 | D13: 13.7 | E13: 4 | F13: 5.4 | G13: 305 | H13: 1019.8 | I13: 0 | J13: 0 | K13: 0 | L13: 11.7 | M13: 15.2 | N13: 138.7 | O13: 11.5 | P13: 12 | Q13: 00:04:00 | Z13: ENE | AB13: 67.5 | AD13: 78.5 | AE13: 90
B14: 13.7 | C14: 77 | D14: 13.7 | E14: 4.3 | F14: 5.4 | G14: 298 | H14: 1020 | I14: 0 | J14: 0 | K14: 0 | L14: 11.7 | M14: 15.2 | N14: 138.7 | O14: 11.5 | P14: 12 | Q14: 00:05:00 | AB14: 90 | AD14: 101 | AE14: 112 | AK14: Commentaires | AO14: =SOMME(U9:U1448)
B15: 13.7 | C15: 77 | D15: 13.7 | E15: 0.7 | F15: 1.8 | G15: 110 | H15: 1019.8 | I15: 0 | J15: 0 | K15: 0 | L15: 11.7 | M15: 15.2 | N15: 138.7 | O15: 11.5 | P15: 12 | Q15: 00:06:00 | Z15: ESE | AB15: 112.5 | AD15: 123.5 | AE15: 135
B16: 13.7 | C16: 77 | D16: 13.7 | E16: 5 | F16: 5.4 | G16: 305 | H16: 1019.7 | I16: 0 | J16: 0 | K16: 0 | L16: 11.7 | M16: 15.2 | N16: 138.7 | O16: 11.5 | P16: 12 | Q16: 00:07:00 | Z16: SSE | AB16: 135 | AD16: 146 | AE16: 157 | AK16: Soleil | AM16: =SOMME(W9:W1448)
B17: 13.7 | C17: 77 | D17: 13.7 | E17: 7.9 | F17: 9.4 | G17: 282 | H17: 1019.9 | I17: 0 | J17: 0 | K17: 0 | L17: 11.7 | M17: 15.2 | N17: 138.7 | O17: 11.5 | P17: 12 | Q17: 00:08:00 | Z17: SE | AB17: 157.5 | AD17: 168.5 | AE17: 180 | AK17: Soleil | AM17: =W1450/60/1440
B18: 13.7 | C18: 77 | D18: 13.7 | E18: 2.2 | F18: 3.6 | G18: 278 | H18: 1019.8 | I18: 0 | J18: 0 | K18: 0 | L18: 11.7 | M18: 15.2 | N18: 138.7 | O18: 11.5 | P18: 12 | Q18: 00:09:00 | Z18: S | AB18: 180 | AD18: 191 | AE18: 202
B19: 13.7 | C19: 77 | D19: 13.7 | E19: 1.8 | F19: 1.8 | G19: 219 | H19: 1019.8 | I19: 0 | J19: 0 | K19: 0 | L19: 11.7 | M19: 15.2 | N19: 138.7 | O19: 11.4 | P19: 12 | Q19: 00:10:00 | Z19: SSO | AB19: 202.5 | AD19: 213.5 | AE19: 225
B20: 13.7 | C20: 77 | D20: 13.7 | E20: 4.7 | F20: 5.4 | G20: 0 | H20: 1019.9 | I20: 0 | J20: 0 | K20: 0 | L20: 11.7 | M20: 15.2 | N20: 138.7 | O20: 11.4 | P20: 12 | Q20: 00:11:00 | Z20: SO | AB20: 225 | AD20: 236 | AE20: 247
B21: 13.7 | C21: 77 | D21: 13.7 | E21: 2.9 | F21: 5.4 | G21: 268 | H21: 1019.9 | I21: 0 | J21: 0 | K21: 0 | L21: 11.7 | M21: 15.2 | N21: 138.7 | O21: 11.5 | P21: 12 | Q21: 00:12:00 | Z21: OSO | AB21: 247.5 | AD21: 258.5 | AE21: 270
B22: 13.7 | C22: 77 | D22: 13.7 | E22: 1.4 | F22: 1.8 | G22: 46 | H22: 1019.8 | I22: 0 | J22: 0 | K22: 0 | L22: 11.7 | M22: 15.2 | N22: 138.7 | O22: 11.5 | P22: 12 | Q22: 00:13:00 | Z22: O | AB22: 270 | AD22: 281 | AE22: 292
B23: 13.7 | C23: 77 | D23: 13.7 | E23: 3.6 | F23: 3.6 | G23: 287 | H23: 1019.8 | I23: 0 | J23: 0 | K23: 0 | L23: 11.7 | M23: 15.2 | N23: 138.7 | O23: 11.4 | P23: 12 | Q23: 00:14:00 | Z23: ONO | AB23: 292.5 | AD23: 303.5 | AE23: 315
B24: 13.7 | C24: 77 | D24: 13.7 | E24: 2.2 | F24: 3.6 | G24: 126 | H24: 1020 | I24: 0 | J24: 0 | K24: 0 | L24: 11.7 | M24: 15.2 | N24: 138.7 | O24: 11.5 | P24: 11.9 | Q24: 00:15:00 | Z24: NO | AB24: 315 | AD24: 326 | AE24: 337
B25: 13.7 | C25: 77 | D25: 13.7 | E25: 4.7 | F25: 5.4 | G25: 298 | H25: 1020 | I25: 0 | J25: 0 | K25: 0 | L25: 11.7 | M25: 15.2 | N25: 138.7 | O25: 11.4 | P25: 12 | Q25: 00:16:00 | Z25: NNO | AB25: 337.5 | AD25: 348.5 | AE25: 349
B26: 13.7 | C26: 77 | D26: 13.7 | E26: 5.4 | F26: 7.2 | G26: 350 | H26: 1019.9 | I26: 0 | J26: 0 | K26: 0 | L26: 11.7 | M26: 15.2 | N26: 138.7 | O26: 11.4 | P26: 12 | Q26: 00:17:00 | Z26: N | AB26: 349 | AD26: 360
B27: 13.7 | C27: 77 | D27: 13.7 | E27: 1.8 | F27: 1.8 | G27: 14 | H27: 1019.9 | I27: 0 | J27: 0 | K27: 0 | L27: 11.7 | M27: 15.2 | N27: 138.7 | O27: 11.4 | P27: 11.9 | Q27: 00:18:00
B28: 13.7 | C28: 77 | D28: 13.7 | E28: 2.5 | F28: 3.6 | G28: 89 | H28: 1020 | I28: 0 | J28: 0 | K28: 0 | L28: 11.7 | M28: 15.2 | N28: 138.7 | O28: 11.4 | P28: 11.9 | Q28: 00:19:00 | Z28: Vues | AD28: =INDEX($Z$9:$Z$26,IF(ISNA(MATCH($AD$30,$AD$9:$AD$26,0)),MATCH($AD$30,$AD$9:$AD$26,1)+1,MATCH($AD$30,$AD$9:$AD$26,0)),1) -> O
B29: 13.6 | C29: 77 | D29: 13.6 | E29: 5.4 | F29: 5.4 | G29: 281 | H29: 1020 | I29: 0 | J29: 0 | K29: 0 | L29: 11.7 | M29: 15.2 | N29: 138.7 | O29: 11.4 | P29: 11.9 | Q29: 00:20:00 | X29: 2022-05-22 | Z29: 1363 | AB29: =SUM(AB32:AB47) -> 1 | AD29: =MAX(AB32:AB47) -> 0.2272727273 | AF29: =SUM(AF32:AF47) -> 22
B30: 13.6 | C30: 77 | D30: 13.6 | E30: 3.6 | F30: 5.4 | G30: 281 | H30: 1020 | I30: 0 | J30: 0 | K30: 0 | L30: 11.7 | M30: 15.2 | N30: 138.7 | O30: 11.4 | P30: 11.9 | Q30: 00:21:00 | AD30: =VLOOKUP(AD29,AB32:AD47,AD31,0) -> 270
B31: 13.6 | C31: 78 | D31: 13.6 | E31: 2.9 | F31: 3.6 | G31: 54 | H31: 1020 | I31: 0 | J31: 0 | K31: 0 | L31: 11.7 | M31: 15.2 | N31: 138.7 | O31: 11.4 | P31: 11.9 | Q31: 00:22:00 | AD31: 3
B32: 13.6 | C32: 78 | D32: 13.6 | E32: 3.6 | F32: 3.6 | G32: 274 | H32: 1020.1 | I32: 0 | J32: 0 | K32: 0 | L32: 11.7 | M32: 15.2 | N32: 138.7 | O32: 11.4 | P32: 11.9 | Q32: 00:23:00 | AB32: =AF32/$AF$29 -> 0.1818181818 | AD32: 0 | AF32: =COUNTIF($G$9:$G$1448,AD32) -> 4
B33: 13.6 | C33: 78 | D33: 13.6 | E33: 4.7 | F33: 5.4 | G33: 316 | H33: 1020.2 | I33: 0 | J33: 0 | K33: 0 | L33: 11.7 | M33: 15.2 | N33: 138.7 | O33: 11.4 | P33: 11.9 | Q33: 00:24:00 | AB33: =AF33/$AF$29 -> 0.09090909091 | AD33: 22 | AF33: =COUNTIF($G$9:$G$1448,AD33) -> 2
B34: 13.6 | C34: 78 | D34: 13.6 | E34: 4 | F34: 5.4 | G34: 318 | H34: 1020 | I34: 0 | J34: 0 | K34: 0 | L34: 11.7 | M34: 15.2 | N34: 138.7 | O34: 11.4 | P34: 11.9 | Q34: 00:25:00 | AB34: =AF34/$AF$29 -> 0.1363636364 | AD34: 45 | AF34: 3
B35: 13.6 | C35: 78 | D35: 13.6 | E35: 2.9 | F35: 3.6 | G35: 90 | H35: 1020 | I35: 0 | J35: 0 | K35: 0 | L35: 11.7 | M35: 15.2 | N35: 138.7 | O35: 11.4 | P35: 11.9 | Q35: 00:26:00 | AB35: 0 | AD35: 67 | AF35: =COUNTIF($G$9:$G$1448,AD35) -> 0
B36: 13.5 | C36: 78 | D36: 13.5 | E36: 3.2 | F36: 5.4 | G36: 329 | H36: 1020.1 | I36: 0 | J36: 0 | K36: 0 | L36: 11.7 | M36: 15.2 | N36: 138.7 | O36: 11.4 | P36: 11.8 | Q36: 00:27:00 | AB36: 0.04545454545 | AD36: 90 | AF36: 1
B37: 13.5 | C37: 78 | D37: 13.5 | E37: 5.4 | F37: 7.2 | G37: 271 | H37: 1020 | I37: 0 | J37: 0 | K37: 0 | L37: 11.7 | M37: 15.2 | N37: 138.7 | O37: 11.4 | P37: 11.8 | Q37: 00:28:00 | AB37: 0.04545454545 | AD37: 112 | AF37: 1
B38: 13.5 | C38: 78 | D38: 13.5 | E38: 2.2 | F38: 5.4 | G38: 269 | H38: 1019.8 | I38: 0 | J38: 0 | K38: 0 | L38: 11.7 | M38: 15.2 | N38: 138.7 | O38: 11.3 | P38: 11.9 | Q38: 00:29:00 | AB38: 0 | AD38: 135 | AF38: 0
B39: 13.5 | C39: 78 | D39: 13.5 | E39: 4 | F39: 5.4 | G39: 318 | H39: 1020 | I39: 0 | J39: 0 | K39: 0 | L39: 11.7 | M39: 15.2 | N39: 138.7 | O39: 11.3 | P39: 11.8 | Q39: 00:30:00 | AB39: 0 | AD39: 157 | AF39: 0
B40: 13.5 | C40: 78 | D40: 13.5 | E40: 2.5 | F40: 3.6 | G40: 312 | H40: 1020.1 | I40: 0 | J40: 0 | K40: 0 | L40: 11.7 | M40: 15.2 | N40: 138.7 | O40: 11.3 | P40: 11.9 | Q40: 00:31:00 | AB40: 0 | AD40: 180 | AF40: 0
B41: 13.5 | C41: 78 | D41: 13.5 | E41: 5 | F41: 5.4 | G41: 284 | H41: 1020.2 | I41: 0 | J41: 0 | K41: 0 | L41: 11.7 | M41: 15.2 | N41: 138.7 | O41: 11.3 | P41: 11.9 | Q41: 00:32:00 | AB41: 0 | AD41: 202 | AF41: 0
B42: 13.5 | C42: 78 | D42: 13.5 | E42: 4.7 | F42: 5.4 | G42: 335 | H42: 1020.3 | I42: 0 | J42: 0 | K42: 0 | L42: 11.7 | M42: 15.2 | N42: 138.7 | O42: 11.3 | P42: 11.8 | Q42: 00:33:00 | AB42: 0 | AD42: 225 | AF42: 0
B43: 13.5 | C43: 78 | D43: 13.5 | E43: 6.5 | F43: 7.2 | G43: 262 | H43: 1020.3 | I43: 0 | J43: 0 | K43: 0 | L43: 11.7 | M43: 15.2 | N43: 138.7 | O43: 11.3 | P43: 11.8 | Q43: 00:34:00 | AB43: 0.1818181818 | AD43: 247 | AF43: 4
B44: 13.5 | C44: 78 | D44: 13.5 | E44: 2.9 | F44: 3.6 | G44: 25 | H44: 1020.1 | I44: 0 | J44: 0 | K44: 0 | L44: 11.7 | M44: 15.2 | N44: 138.7 | O44: 11.3 | P44: 11.8 | Q44: 00:35:00 | AB44: 0.2272727273 | AD44: 270 | AF44: 5
B45: 13.5 | C45: 78 | D45: 13.5 | E45: 1.8 | F45: 1.8 | G45: 13 | H45: 1020.1 | I45: 0 | J45: 0 | K45: 0 | L45: 11.7 | M45: 15.2 | N45: 138.7 | O45: 11.3 | P45: 11.8 | Q45: 00:36:00 | AB45: 0.04545454545 | AD45: 292 | AF45: 1
B46: 13.5 | C46: 78 | D46: 13.5 | E46: 2.9 | F46: 5.4 | G46: 284 | H46: 1020.2 | I46: 0 | J46: 0 | K46: 0 | L46: 11.7 | M46: 15.2 | N46: 138.7 | O46: 11.3 | P46: 11.8 | Q46: 00:37:00 | AB46: 0.04545454545 | AD46: 315 | AF46: 1
B47: 13.5 | C47: 78 | D47: 13.5 | E47: 2.5 | F47: 3.6 | G47: 278 | H47: 1020.2 | I47: 0 | J47: 0 | K47: 0 | L47: 11.7 | M47: 15.2 | N47: 138.7 | O47: 11.2 | P47: 11.8 | Q47: 00:38:00 | AB47: 0 | AD47: 337 | AF47: 0
B48: 13.4 | C48: 78 | D48: 13.4 | E48: 2.2 | F48: 3.6 | G48: 68 | H48: 1020.3 | I48: 0 | J48: 0 | K48: 0 | L48: 11.7 | M48: 15.2 | N48: 138.7 | O48: 11.2 | P48: 11.7 | Q48: 00:39:00
B49: 13.4 | C49: 78 | D49: 13.4 | E49: 2.2 | F49: 3.6 | G49: 27 | H49: 1020.3 | I49: 0 | J49: 0 | K49: 0 | L49: 11.7 | M49: 15.2 | N49: 138.7 | O49: 11.2 | P49: 11.7 | Q49: 00:40:00
B50: 13.4 | C50: 78 | D50: 13.4 | E50: 2.9 | F50: 3.6 | G50: 334 | H50: 1020.3 | I50: 0 | J50: 0 | K50: 0 | L50: 11.7 | M50: 15.2 | N50: 138.7 | O50: 11.2 | P50: 11.7 | Q50: 00:41:00
B51: 13.4 | C51: 78 | D51: 13.4 | E51: 2.9 | F51: 3.6 | G51: 13 | H51: 1020.3 | I51: 0 | J51: 0 | K51: 0 | L51: 11.7 | M51: 15.2 | N51: 138.7 | O51: 11.2 | P51: 11.7 | Q51: 00:42:00
B52: 13.4 | C52: 78 | D52: 13.4 | E52: 2.2 | F52: 3.6 | G52: 45 | H52: 1020.1 | I52: 0 | J52: 0 | K52: 0 | L52: 11.7 | M52: 15.2 | N52: 138.7 | O52: 11.2 | P52: 11.7 | Q52: 00:43:00
B53: 13.3 | C53: 78 | D53: 13.3 | E53: 4.7 | F53: 5.4 | G53: 315 | H53: 1020.4 | I53: 0 | J53: 0 | K53: 0 | L53: 11.7 | M53: 15.2 | N53: 138.7 | O53: 11.1 | P53: 11.6 | Q53: 00:44:00
B54: 13.4 | C54: 78 | D54: 13.4 | E54: 4 | F54: 5.4 | G54: 264 | H54: 1020.5 | I54: 0 | J54: 0 | K54: 0 | L54: 11.7 | M54: 15.2 | N54: 138.7 | O54: 11.1 | P54: 11.6 | Q54: 00:45:00
B55: 13.4 | C55: 78 | D55: 13.4 | E55: 2.9 | F55: 3.6 | G55: 267 | H55: 1020.1 | I55: 0 | J55: 0 | K55: 0 | L55: 11.7 | M55: 15.2 | N55: 138.7 | O55: 11.2 | P55: 11.6 | Q55: 00:46:00
B56: 13.4 | C56: 78 | D56: 13.4 | E56: 3.2 | F56: 5.4 | G56: 270 | H56: 1020.4 | I56: 0 | J56: 0 | K56: 0 | L56: 11.7 | M56: 15.2 | N56: 138.7 | O56: 11.1 | P56: 11.6 | Q56: 00:47:00
B57: 13.4 | C57: 78 | D57: 13.4 | E57: 2.9 | F57: 5.4 | G57: 240 | H57: 1020.4 | I57: 0 | J57: 0 | K57: 0 | L57: 11.7 | M57: 15.2 | N57: 138.7 | O57: 11.1 | P57: 11.6 | Q57: 00:48:00
B58: 13.4 | C58: 78 | D58: 13.4 | E58: 1.4 | F58: 1.8 | G58: 85 | H58: 1020.4 | I58: 0 | J58: 0 | K58: 0 | L58: 11.7 | M58: 15.2 | N58: 138.7 | O58: 11.1 | P58: 11.6 | Q58: 00:49:00
B59: 13.4 | C59: 78 | D59: 13.4 | E59: 6.8 | F59: 9.4 | G59: 286 | H59: 1020.4 | I59: 0 | J59: 0 | K59: 0 | L59: 11.7 | M59: 15.2 | N59: 138.7 | O59: 11.1 | P59: 11.6 | Q59: 00:50:00
B60: 13.4 | C60: 78 | D60: 13.4 | E60: 2.9 | F60: 3.6 | G60: 294 | H60: 1020.2 | I60: 0 | J60: 0 | K60: 0 | L60: 11.7 | M60: 15.2 | N60: 138.7 | O60: 11.1 | P60: 11.6 | Q60: 00:51:00
B61: 13.4 | C61: 78 | D61: 13.4 | E61: 4.3 | F61: 7.2 | G61: 268 | H61: 1020.4 | I61: 0 | J61: 0 | K61: 0 | L61: 11.7 | M61: 15.2 | N61: 138.7 | O61: 11.1 | P61: 11.6 | Q61: 00:52:00
B62: 13.4 | C62: 78 | D62: 13.4 | E62: 2.5 | F62: 3.6 | G62: 277 | H62: 1020.2 | I62: 0 | J62: 0 | K62: 0 | L62: 11.7 | M62: 15.2 | N62: 138.7 | O62: 11.1 | P62: 11.6 | Q62: 00:53:00
B63: 13.4 | C63: 78 | D63: 13.4 | E63: 4 | F63: 5.4 | G63: 291 | H63: 1020.2 | I63: 0 | J63: 0 | K63: 0 | L63: 11.7 | M63: 15.2 | N63: 138.7 | O63: 11.1 | P63: 11.6 | Q63: 00:54:00
B64: 13.4 | C64: 78 | D64: 13.4 | E64: 3.6 | F64: 5.4 | G64: 282 | H64: 1020.1 | I64: 0 | J64: 0 | K64: 0 | L64: 11.7 | M64: 15.2 | N64: 138.7 | O64: 11.1 | P64: 11.6 | Q64: 00:55:00
B65: 13.4 | C65: 78 | D65: 13.4 | E65: 1.8 | F65: 1.8 | G65: 321 | H65: 1020.2 | I65: 0 | J65: 0 | K65: 0 | L65: 11.7 | M65: 15.2 | N65: 138.7 | O65: 11.1 | P65: 11.6 | Q65: 00:56:00
B66: 13.4 | C66: 78 | D66: 13.4 | E66: 5 | F66: 5.4 | G66: 247 | H66: 1020.2 | I66: 0 | J66: 0 | K66: 0 | L66: 11.7 | M66: 15.2 | N66: 138.7 | O66: 11.1 | P66: 11.6 | Q66: 00:57:00
B67: 13.4 | C67: 78 | D67: 13.4 | E67: 1.8 | F67: 1.8 | G67: 19 | H67: 1020.1 | I67: 0 | J67: 0 | K67: 0 | L67: 11.7 | M67: 15.2 | N67: 138.7 | O67: 11.1 | P67: 11.6 | Q67: 00:58:00
B68: 13.4 | C68: 78 | D68: 13.4 | E68: 1.8 | F68: 1.8 | G68: 71 | H68: 1020.4 | I68: 0 | J68: 0 | K68: 0 | L68: 11.7 | M68: 15.2 | N68: 138.7 | O68: 11.1 | P68: 11.6 | Q68: 00:59:00
B69: 13.3 | C69: 79 | D69: 13.3 | E69: 1.8 | F69: 1.8 | G69: 138 | H69: 1020.3 | I69: 0 | J69: 0 | K69: 0 | L69: 11.7 | M69: 15.2 | N69: 138.7 | O69: 11.2 | P69: 11.6 | Q69: 01:00:00
B70: 13.3 | C70: 79 | D70: 13.3 | E70: 5 | F70: 5.4 | G70: 268 | H70: 1020.3 | I70: 0 | J70: 0 | K70: 0 | L70: 11.7 | M70: 15.2 | N70: 138.7 | O70: 11.1 | P70: 11.5 | Q70: 01:01:00
B71: 13.3 | C71: 79 | D71: 13.3 | E71: 3.2 | F71: 3.6 | G71: 313 | H71: 1020.2 | I71: 0 | J71: 0 | K71: 0 | L71: 11.7 | M71: 15.2 | N71: 138.7 | O71: 11.1 | P71: 11.5 | Q71: 01:02:00
B72: 13.3 | C72: 79 | D72: 13.3 | E72: 4.7 | F72: 5.4 | G72: 264 | H72: 1020.3 | I72: 0 | J72: 0 | K72: 0 | L72: 11.7 | M72: 15.2 | N72: 138.7 | O72: 11.1 | P72: 11.5 | Q72: 01:03:00
B73: 13.3 | C73: 79 | D73: 13.3 | E73: 2.2 | F73: 3.6 | G73: 354 | H73: 1020.2 | I73: 0 | J73: 0 | K73: 0 | L73: 11.7 | M73: 15.2 | N73: 138.7 | O73: 11.1 | P73: 11.5 | Q73: 01:04:00
B74: 13.3 | C74: 79 | D74: 13.3 | E74: 1.4 | F74: 1.8 | G74: 2 | H74: 1020.2 | I74: 0 | J74: 0 | K74: 0 | L74: 11.7 | M74: 15.2 | N74: 138.7 | O74: 11.1 | P74: 11.5 | Q74: 01:05:00
B75: 13.3 | C75: 79 | D75: 13.3 | E75: 3.6 | F75: 3.6 | G75: 282 | H75: 1020.4 | I75: 0 | J75: 0 | K75: 0 | L75: 11.7 | M75: 15.2 | N75: 138.7 | O75: 11.1 | P75: 11.5 | Q75: 01:06:00 | U75: =IF(J75>0,60,"") -> 
B76: 13.3 | C76: 79 | D76: 13.3 | E76: 1.8 | F76: 1.8 | G76: 11 | H76: 1020.4 | I76: 0 | J76: 0 | K76: 0 | L76: 11.7 | M76: 15.2 | N76: 138.7 | O76: 11.1 | P76: 11.5 | Q76: 01:07:00
B77: 13.3 | C77: 79 | D77: 13.3 | E77: 4 | F77: 5.4 | G77: 33 | H77: 1020.3 | I77: 0 | J77: 0 | K77: 0 | L77: 11.7 | M77: 15.2 | N77: 138.7 | O77: 11.1 | P77: 11.5 | Q77: 01:08:00
B78: 13.2 | C78: 79 | D78: 13.2 | E78: 2.5 | F78: 3.6 | G78: 34 | H78: 1020.3 | I78: 0 | J78: 0 | K78: 0 | L78: 11.7 | M78: 15.2 | N78: 138.7 | O78: 11.1 | P78: 11.5 | Q78: 01:09:00
B79: 13.2 | C79: 79 | D79: 13.2 | E79: 2.9 | F79: 3.6 | G79: 321 | H79: 1020.2 | I79: 0 | J79: 0 | K79: 0 | L79: 11.7 | M79: 15.2 | N79: 138.7 | O79: 11.1 | P79: 11.5 | Q79: 01:10:00
B80: 13.2 | C80: 79 | D80: 13.2 | E80: 2.2 | F80: 3.6 | G80: 354 | H80: 1020.4 | I80: 0 | J80: 0 | K80: 0 | L80: 11.7 | M80: 15.2 | N80: 138.7 | O80: 11.1 | P80: 11.5 | Q80: 01:11:00
B81: 13.2 | C81: 79 | D81: 13.2 | E81: 1.8 | F81: 1.8 | G81: 36 | H81: 1020.2 | I81: 0 | J81: 0 | K81: 0 | L81: 11.7 | M81: 15.2 | N81: 138.7 | O81: 11 | P81: 11.5 | Q81: 01:12:00
B82: 13.2 | C82: 79 | D82: 13.2 | E82: 1.4 | F82: 1.8 | G82: 27 | H82: 1020.2 | I82: 0 | J82: 0 | K82: 0 | L82: 11.7 | M82: 15.2 | N82: 138.7 | O82: 11 | P82: 11.5 | Q82: 01:13:00
B83: 13.2 | C83: 79 | D83: 13.2 | E83: 2.9 | F83: 3.6 | G83: 2 | H83: 1020.3 | I83: 0 | J83: 0 | K83: 0 | L83: 11.7 | M83: 15.2 | N83: 138.7 | O83: 11 | P83: 11.4 | Q83: 01:14:00
B84: 13.2 | C84: 80 | D84: 13.2 | E84: 1.8 | F84: 1.8 | G84: 9 | H84: 1020.3 | I84: 0 | J84: 0 | K84: 0 | L84: 11.7 | M84: 15.2 | N84: 138.7 | O84: 10.9 | P84: 11.4 | Q84: 01:15:00
B85: 13.2 | C85: 80 | D85: 13.2 | E85: 1.8 | F85: 1.8 | G85: 356 | H85: 1020.2 | I85: 0 | J85: 0 | K85: 0 | L85: 11.7 | M85: 15.2 | N85: 138.7 | O85: 10.9 | P85: 11.3 | Q85: 01:16:00
B86: 13.2 | C86: 80 | D86: 13.2 | E86: 2.9 | F86: 3.6 | G86: 249 | H86: 1020.3 | I86: 0 | J86: 0 | K86: 0 | L86: 11.7 | M86: 15.2 | N86: 138.7 | O86: 10.9 | P86: 11.3 | Q86: 01:17:00
B87: 13.2 | C87: 80 | D87: 13.2 | E87: 1.1 | F87: 1.8 | G87: 24 | H87: 1020.1 | I87: 0 | J87: 0 | K87: 0 | L87: 11.7 | M87: 15.2 | N87: 138.7 | O87: 10.8 | P87: 11.3 | Q87: 01:18:00
B88: 13.1 | C88: 80 | D88: 13.1 | E88: 2.2 | F88: 3.6 | G88: 243 | H88: 1020.5 | I88: 0 | J88: 0 | K88: 0 | L88: 11.7 | M88: 15.2 | N88: 138.7 | O88: 10.8 | P88: 11.3 | Q88: 01:19:00
B89: 13.1 | C89: 80 | D89: 13.1 | E89: 2.2 | F89: 3.6 | G89: 262 | H89: 1020.3 | I89: 0 | J89: 0 | K89: 0 | L89: 11.7 | M89: 15.2 | N89: 138.7 | O89: 10.8 | P89: 11.3 | Q89: 01:20:00
B90: 13.1 | C90: 80 | D90: 13.1 | E90: 4 | F90: 5.4 | G90: 247 | H90: 1020.4 | I90: 0 | J90: 0 | K90: 0 | L90: 11.7 | M90: 15.2 | N90: 138.7 | O90: 10.7 | P90: 11.2 | Q90: 01:21:00
B91: 13.1 | C91: 80 | D91: 13.1 | E91: 3.6 | F91: 5.4 | G91: 280 | H91: 1020.2 | I91: 0 | J91: 0 | K91: 0 | L91: 11.7 | M91: 15.2 | N91: 138.7 | O91: 10.7 | P91: 11.2 | Q91: 01:22:00
B92: 13.1 | C92: 80 | D92: 13.1 | E92: 3.6 | F92: 3.6 | G92: 265 | H92: 1020.3 | I92: 0 | J92: 0 | K92: 0 | L92: 11.7 | M92: 15.2 | N92: 138.7 | O92: 10.7 | P92: 11.2 | Q92: 01:23:00
B93: 13.1 | C93: 80 | D93: 13.1 | E93: 2.9 | F93: 3.6 | G93: 296 | H93: 1020.5 | I93: 0 | J93: 0 | K93: 0 | L93: 11.7 | M93: 15.2 | N93: 138.7 | O93: 10.7 | P93: 11.2 | Q93: 01:24:00
B94: 13.1 | C94: 80 | D94: 13.1 | E94: 1.1 | F94: 1.8 | G94: 138 | H94: 1020.3 | I94: 0 | J94: 0 | K94: 0 | L94: 11.7 | M94: 15.2 | N94: 138.7 | O94: 10.7 | P94: 11.2 | Q94: 01:25:00
B95: 13.1 | C95: 80 | D95: 13.1 | E95: 3.2 | F95: 3.6 | G95: 287 | H95: 1020.3 | I95: 0 | J95: 0 | K95: 0 | L95: 11.7 | M95: 15.2 | N95: 138.7 | O95: 10.7 | P95: 11.2 | Q95: 01:26:00
B96: 13.1 | C96: 80 | D96: 13.1 | E96: 1.4 | F96: 1.8 | G96: 86 | H96: 1020.3 | I96: 0 | J96: 0 | K96: 0 | L96: 11.7 | M96: 15.2 | N96: 138.7 | O96: 10.7 | P96: 11.1 | Q96: 01:27:00
B97: 13.1 | C97: 80 | D97: 13.1 | E97: 0.7 | F97: 1.8 | G97: 51 | H97: 1020.4 | I97: 0 | J97: 0 | K97: 0 | L97: 11.7 | M97: 15.2 | N97: 138.7 | O97: 10.7 | P97: 11.1 | Q97: 01:28:00
B98: 13.1 | C98: 80 | D98: 13.1 | E98: 1.4 | F98: 1.8 | G98: 40 | H98: 1020.4 | I98: 0 | J98: 0 | K98: 0 | L98: 11.7 | M98: 15.2 | N98: 138.7 | O98: 10.7 | P98: 11.1 | Q98: 01:29:00
B99: 13 | C99: 80 | D99: 13 | E99: 0.7 | F99: 1.8 | G99: 63 | H99: 1020.2 | I99: 0 | J99: 0 | K99: 0 | L99: 11.7 | M99: 15.2 | N99: 138.7 | O99: 10.7 | P99: 11.1 | Q99: 01:30:00
B100: 13 | C100: 80 | D100: 13 | E100: 0.4 | F100: 1.8 | G100: 33 | H100: 1020.4 | I100: 0 | J100: 0 | K100: 0 | L100: 11.7 | M100: 15.2 | N100: 138.7 | O100: 10.7 | P100: 11.1 | Q100: 01:31:00
B101: 13 | C101: 81 | D101: 13 | E101: 1.1 | F101: 1.8 | G101: 18 | H101: 1020.4 | I101: 0 | J101: 0 | K101: 0 | L101: 11.7 | M101: 15.2 | N101: 138.7 | O101: 10.7 | P101: 11 | Q101: 01:32:00
B102: 13 | C102: 81 | D102: 13 | E102: 0.4 | F102: 1.8 | G102: 56 | H102: 1020.3 | I102: 0 | J102: 0 | K102: 0 | L102: 11.7 | M102: 15.2 | N102: 138.7 | O102: 10.6 | P102: 11 | Q102: 01:33:00
B103: 13 | C103: 81 | D103: 13 | E103: 1.4 | F103: 1.8 | G103: 195 | H103: 1020.2 | I103: 0 | J103: 0 | K103: 0 | L103: 11.7 | M103: 15.2 | N103: 138.7 | O103: 10.6 | P103: 11 | Q103: 01:34:00
B104: 13 | C104: 81 | D104: 13 | E104: 1.4 | F104: 1.8 | G104: 15 | H104: 1020.4 | I104: 0 | J104: 0 | K104: 0 | L104: 11.7 | M104: 15.2 | N104: 138.7 | O104: 10.6 | P104: 11 | Q104: 01:35:00
B105: 13 | C105: 81 | D105: 13 | E105: 1.1 | F105: 1.8 | G105: 312 | H105: 1020.4 | I105: 0 | J105: 0 | K105: 0 | L105: 11.7 | M105: 15.2 | N105: 138.7 | O105: 10.6 | P105: 11 | Q105: 01:36:00
B106: 13 | C106: 81 | D106: 13 | E106: 1.8 | F106: 1.8 | G106: 34 | H106: 1020.2 | I106: 0 | J106: 0 | K106: 0 | L106: 11.7 | M106: 15.2 | N106: 138.7 | O106: 10.6 | P106: 10.9 | Q106: 01:37:00
B107: 13 | C107: 81 | D107: 13 | E107: 1.4 | F107: 1.8 | G107: 53 | H107: 1020.4 | I107: 0 | J107: 0 | K107: 0 | L107: 11.7 | M107: 15.2 | N107: 138.7 | O107: 10.6 | P107: 10.9 | Q107: 01:38:00
B108: 13 | C108: 81 | D108: 13 | E108: 1.8 | F108: 1.8 | G108: 5 | H108: 1020.2 | I108: 0 | J108: 0 | K108: 0 | L108: 11.7 | M108: 15.2 | N108: 138.7 | O108: 10.5 | P108: 10.9 | Q108: 01:39:00
B109: 13 | C109: 81 | D109: 13 | E109: 1.4 | F109: 1.8 | G109: 62 | H109: 1020.4 | I109: 0 | J109: 0 | K109: 0 | L109: 11.7 | M109: 15.2 | N109: 138.7 | O109: 10.5 | P109: 10.9 | Q109: 01:40:00
B110: 13 | C110: 81 | D110: 13 | E110: 2.2 | F110: 3.6 | G110: 356 | H110: 1020.4 | I110: 0 | J110: 0 | K110: 0 | L110: 11.7 | M110: 15.2 | N110: 138.7 | O110: 10.5 | P110: 10.9 | Q110: 01:41:00
B111: 13 | C111: 81 | D111: 13 | E111: 0 | F111: 0 | G111: 72 | H111: 1020.4 | I111: 0 | J111: 0 | K111: 0 | L111: 11.7 | M111: 15.2 | N111: 138.7 | O111: 10.4 | P111: 10.9 | Q111: 01:42:00
B112: 13 | C112: 81 | D112: 13 | E112: 1.8 | F112: 1.8 | G112: 19 | H112: 1020.3 | I112: 0 | J112: 0 | K112: 0 | L112: 11.7 | M112: 15.2 | N112: 138.7 | O112: 10.4 | P112: 10.9 | Q112: 01:43:00
B113: 12.9 | C113: 81 | D113: 12.9 | E113: 0.7 | F113: 1.8 | G113: 99 | H113: 1020.4 | I113: 0 | J113: 0 | K113: 0 | L113: 11.7 | M113: 15.2 | N113: 138.7 | O113: 10.4 | P113: 10.8 | Q113: 01:44:00
B114: 12.9 | C114: 81 | D114: 12.9 | E114: 1.8 | F114: 1.8 | G114: 70 | H114: 1020.4 | I114: 0 | J114: 0 | K114: 0 | L114: 11.7 | M114: 15.2 | N114: 138.7 | O114: 10.4 | P114: 10.9 | Q114: 01:45:00
B115: 12.9 | C115: 81 | D115: 12.9 | E115: 1.4 | F115: 1.8 | G115: 77 | H115: 1020.6 | I115: 0 | J115: 0 | K115: 0 | L115: 11.7 | M115: 15.2 | N115: 138.7 | O115: 10.4 | P115: 10.8 | Q115: 01:46:00
B116: 12.9 | C116: 81 | D116: 12.9 | E116: 1.4 | F116: 1.8 | G116: 17 | H116: 1020.5 | I116: 0 | J116: 0 | K116: 0 | L116: 11.7 | M116: 15.2 | N116: 138.7 | O116: 10.3 | P116: 10.8 | Q116: 01:47:00
B117: 12.9 | C117: 81 | D117: 12.9 | E117: 0.7 | F117: 1.8 | G117: 55 | H117: 1020.5 | I117: 0 | J117: 0 | K117: 0 | L117: 11.7 | M117: 15.2 | N117: 138.7 | O117: 10.3 | P117: 10.8 | Q117: 01:48:00
B118: 12.9 | C118: 82 | D118: 12.9 | E118: 1.4 | F118: 3.6 | G118: 328 | H118: 1020.4 | I118: 0 | J118: 0 | K118: 0 | L118: 11.7 | M118: 15.2 | N118: 138.7 | O118: 10.3 | P118: 10.8 | Q118: 01:49:00
B119: 12.9 | C119: 82 | D119: 12.9 | E119: 1.1 | F119: 1.8 | G119: 42 | H119: 1020.5 | I119: 0 | J119: 0 | K119: 0 | L119: 11.7 | M119: 15.2 | N119: 138.7 | O119: 10.3 | P119: 10.8 | Q119: 01:50:00
B120: 12.9 | C120: 82 | D120: 12.9 | E120: 2.2 | F120: 3.6 | G120: 329 | H120: 1020.4 | I120: 0 | J120: 0 | K120: 0 | L120: 11.7 | M120: 15.2 | N120: 138.7 | O120: 10.3 | P120: 10.7 | Q120: 01:51:00
B121: 12.9 | C121: 82 | D121: 12.9 | E121: 1.8 | F121: 1.8 | G121: 314 | H121: 1020.5 | I121: 0 | J121: 0 | K121: 0 | L121: 11.7 | M121: 15.2 | N121: 138.7 | O121: 10.3 | P121: 10.7 | Q121: 01:52:00
B122: 12.9 | C122: 82 | D122: 12.9 | E122: 3.6 | F122: 3.6 | G122: 275 | H122: 1020.6 | I122: 0 | J122: 0 | K122: 0 | L122: 11.7 | M122: 15.2 | N122: 138.7 | O122: 10.3 | P122: 10.7 | Q122: 01:53:00
B123: 12.9 | C123: 82 | D123: 12.9 | E123: 5 | F123: 5.4 | G123: 280 | H123: 1020.4 | I123: 0 | J123: 0 | K123: 0 | L123: 11.7 | M123: 15.2 | N123: 138.7 | O123: 10.2 | P123: 10.7 | Q123: 01:54:00
B124: 12.9 | C124: 82 | D124: 12.9 | E124: 1.1 | F124: 1.8 | G124: 286 | H124: 1020.7 | I124: 0 | J124: 0 | K124: 0 | L124: 11.7 | M124: 15.2 | N124: 138.7 | O124: 10.3 | P124: 10.7 | Q124: 01:55:00
B125: 12.9 | C125: 82 | D125: 12.9 | E125: 2.2 | F125: 3.6 | G125: 267 | H125: 1020.7 | I125: 0 | J125: 0 | K125: 0 | L125: 11.7 | M125: 15.2 | N125: 138.7 | O125: 10.3 | P125: 10.7 | Q125: 01:56:00
B126: 12.9 | C126: 82 | D126: 12.9 | E126: 4.3 | F126: 5.4 | G126: 263 | H126: 1020.4 | I126: 0 | J126: 0 | K126: 0 | L126: 11.7 | M126: 15.2 | N126: 138.7 | O126: 10.2 | P126: 10.7 | Q126: 01:57:00
B127: 12.9 | C127: 82 | D127: 12.9 | E127: 3.2 | F127: 3.6 | G127: 326 | H127: 1020.6 | I127: 0 | J127: 0 | K127: 0 | L127: 11.7 | M127: 15.2 | N127: 138.7 | O127: 10.3 | P127: 10.8 | Q127: 01:58:00
B128: 12.9 | C128: 82 | D128: 12.9 | E128: 3.6 | F128: 3.6 | G128: 282 | H128: 1020.7 | I128: 0 | J128: 0 | K128: 0 | L128: 11.7 | M128: 15.2 | N128: 138.7 | O128: 10.2 | P128: 10.8 | Q128: 01:59:00
B129: 12.9 | C129: 82 | D129: 12.9 | E129: 2.9 | F129: 3.6 | G129: 285 | H129: 1020.6 | I129: 0 | J129: 0 | K129: 0 | L129: 11.7 | M129: 15.2 | N129: 138.7 | O129: 10.3 | P129: 10.8 | Q129: 02:00:00
B130: 12.9 | C130: 82 | D130: 12.9 | E130: 3.2 | F130: 3.6 | G130: 272 | H130: 1020.7 | I130: 0 | J130: 0 | K130: 0 | L130: 11.7 | M130: 15.2 | N130: 138.7 | O130: 10.3 | P130: 10.8 | Q130: 02:01:00
B131: 12.9 | C131: 82 | D131: 12.9 | E131: 1.8 | F131: 1.8 | G131: 55 | H131: 1020.6 | I131: 0 | J131: 0 | K131: 0 | L131: 11.7 | M131: 15.2 | N131: 138.7 | O131: 10.3 | P131: 10.8 | Q131: 02:02:00
B132: 12.9 | C132: 82 | D132: 12.9 | E132: 0.4 | F132: 1.8 | G132: 94 | H132: 1020.8 | I132: 0 | J132: 0 | K132: 0 | L132: 11.7 | M132: 15.2 | N132: 138.7 | O132: 10.3 | P132: 10.8 | Q132: 02:03:00
B133: 12.9 | C133: 82 | D133: 12.9 | E133: 1.4 | F133: 1.8 | G133: 327 | H133: 1020.8 | I133: 0 | J133: 0 | K133: 0 | L133: 11.7 | M133: 15.2 | N133: 138.7 | O133: 10.3 | P133: 10.8 | Q133: 02:04:00
B134: 12.9 | C134: 82 | D134: 12.9 | E134: 2.5 | F134: 3.6 | G134: 275 | H134: 1020.6 | I134: 0 | J134: 0 | K134: 0 | L134: 11.7 | M134: 15.2 | N134: 138.7 | O134: 10.3 | P134: 10.8 | Q134: 02:05:00
B135: 12.9 | C135: 82 | D135: 12.9 | E135: 1.8 | F135: 1.8 | G135: 332 | H135: 1020.7 | I135: 0 | J135: 0 | K135: 0 | L135: 11.7 | M135: 15.2 | N135: 138.7 | O135: 10.3 | P135: 10.8 | Q135: 02:06:00
B136: 12.9 | C136: 82 | D136: 12.9 | E136: 1.4 | F136: 1.8 | G136: 332 | H136: 1020.7 | I136: 0 | J136: 0 | K136: 0 | L136: 11.7 | M136: 15.2 | N136: 138.7 | O136: 10.3 | P136: 10.8 | Q136: 02:07:00
B137: 12.9 | C137: 82 | D137: 12.9 | E137: 1.4 | F137: 1.8 | G137: 343 | H137: 1020.6 | I137: 0 | J137: 0 | K137: 0 | L137: 11.7 | M137: 15.2 | N137: 138.7 | O137: 10.3 | P137: 10.8 | Q137: 02:08:00
B138: 12.9 | C138: 82 | D138: 12.9 | E138: 1.8 | F138: 1.8 | G138: 329 | H138: 1020.7 | I138: 0 | J138: 0 | K138: 0 | L138: 11.7 | M138: 15.2 | N138: 138.7 | O138: 10.3 | P138: 10.8 | Q138: 02:09:00
B139: 12.9 | C139: 82 | D139: 12.9 | E139: 1.8 | F139: 1.8 | G139: 316 | H139: 1020.7 | I139: 0 | J139: 0 | K139: 0 | L139: 11.7 | M139: 15.2 | N139: 138.7 | O139: 10.3 | P139: 10.8 | Q139: 02:10:00 | U139: =IF(J139>0,60,"") -> 
B140: 12.9 | C140: 82 | D140: 12.9 | E140: 2.2 | F140: 3.6 | G140: 318 | H140: 1020.8 | I140: 0 | J140: 0 | K140: 0 | L140: 11.7 | M140: 15.2 | N140: 138.7 | O140: 10.3 | P140: 10.8 | Q140: 02:11:00
B141: 12.9 | C141: 82 | D141: 12.9 | E141: 2.2 | F141: 3.6 | G141: 1 | H141: 1020.5 | I141: 0 | J141: 0 | K141: 0 | L141: 11.7 | M141: 15.2 | N141: 138.7 | O141: 10.3 | P141: 10.8 | Q141: 02:12:00
B142: 12.9 | C142: 82 | D142: 12.9 | E142: 1.1 | F142: 1.8 | G142: 36 | H142: 1020.7 | I142: 0 | J142: 0 | K142: 0 | L142: 11.7 | M142: 15.2 | N142: 138.7 | O142: 10.3 | P142: 10.7 | Q142: 02:13:00
B143: 12.9 | C143: 82 | D143: 12.9 | E143: 1.8 | F143: 1.8 | G143: 42 | H143: 1020.7 | I143: 0 | J143: 0 | K143: 0 | L143: 11.7 | M143: 15.2 | N143: 138.7 | O143: 10.3 | P143: 10.8 | Q143: 02:14:00
B144: 12.9 | C144: 82 | D144: 12.9 | E144: 1.8 | F144: 1.8 | G144: 35 | H144: 1020.6 | I144: 0 | J144: 0 | K144: 0 | L144: 11.7 | M144: 15.2 | N144: 138.7 | O144: 10.3 | P144: 10.8 | Q144: 02:15:00
B145: 12.9 | C145: 82 | D145: 12.9 | E145: 0.4 | F145: 1.8 | G145: 54 | H145: 1020.8 | I145: 0 | J145: 0 | K145: 0 | L145: 11.7 | M145: 15.2 | N145: 138.7 | O145: 10.3 | P145: 10.8 | Q145: 02:16:00
B146: 12.9 | C146: 82 | D146: 12.9 | E146: 1.8 | F146: 1.8 | G146: 36 | H146: 1020.7 | I146: 0 | J146: 0 | K146: 0 | L146: 11.7 | M146: 15.2 | N146: 138.7 | O146: 10.3 | P146: 10.8 | Q146: 02:17:00
B147: 12.9 | C147: 82 | D147: 12.9 | E147: 1.4 | F147: 1.8 | G147: 8 | H147: 1020.7 | I147: 0 | J147: 0 | K147: 0 | L147: 11.7 | M147: 15.2 | N147: 138.7 | O147: 10.3 | P147: 10.8 | Q147: 02:18:00
B148: 12.9 | C148: 82 | D148: 12.9 | E148: 1.8 | F148: 1.8 | G148: 22 | H148: 1020.8 | I148: 0 | J148: 0 | K148: 0 | L148: 11.7 | M148: 15.2 | N148: 138.7 | O148: 10.3 | P148: 10.7 | Q148: 02:19:00
B149: 12.9 | C149: 82 | D149: 12.9 | E149: 3.2 | F149: 3.6 | G149: 276 | H149: 1020.8 | I149: 0 | J149: 0 | K149: 0 | L149: 11.7 | M149: 15.2 | N149: 138.7 | O149: 10.3 | P149: 10.7 | Q149: 02:20:00
B150: 12.9 | C150: 82 | D150: 12.9 | E150: 2.5 | F150: 3.6 | G150: 259 | H150: 1021 | I150: 0 | J150: 0 | K150: 0 | L150: 11.7 | M150: 15.2 | N150: 138.7 | O150: 10.2 | P150: 10.7 | Q150: 02:21:00
B151: 13 | C151: 82 | D151: 13 | E151: 4.7 | F151: 5.4 | G151: 0 | H151: 1020.5 | I151: 0 | J151: 0 | K151: 0 | L151: 11.7 | M151: 15.2 | N151: 138.7 | O151: 10.3 | P151: 10.7 | Q151: 02:22:00
B152: 13 | C152: 82 | D152: 13 | E152: 1.8 | F152: 1.8 | G152: 150 | H152: 1020.7 | I152: 0 | J152: 0 | K152: 0 | L152: 11.7 | M152: 15.2 | N152: 138.7 | O152: 10.3 | P152: 10.7 | Q152: 02:23:00
B153: 13.1 | C153: 82 | D153: 13.1 | E153: 4 | F153: 5.4 | G153: 319 | H153: 1020.8 | I153: 0 | J153: 0 | K153: 0 | L153: 11.7 | M153: 15.2 | N153: 138.7 | O153: 10.3 | P153: 10.8 | Q153: 02:24:00
B154: 13.1 | C154: 82 | D154: 13.1 | E154: 3.6 | F154: 3.6 | G154: 262 | H154: 1020.5 | I154: 0 | J154: 0 | K154: 0 | L154: 11.7 | M154: 15.2 | N154: 138.7 | O154: 10.3 | P154: 10.8 | Q154: 02:25:00
B155: 13.1 | C155: 81 | D155: 13.1 | E155: 2.2 | F155: 3.6 | G155: 317 | H155: 1020.5 | I155: 0 | J155: 0 | K155: 0 | L155: 11.7 | M155: 15.2 | N155: 138.7 | O155: 10.3 | P155: 10.8 | Q155: 02:26:00
B156: 13.1 | C156: 81 | D156: 13.1 | E156: 3.2 | F156: 3.6 | G156: 259 | H156: 1020.8 | I156: 0 | J156: 0 | K156: 0 | L156: 11.7 | M156: 15.2 | N156: 138.7 | O156: 10.3 | P156: 10.8 | Q156: 02:27:00
B157: 13.1 | C157: 81 | D157: 13.1 | E157: 2.9 | F157: 3.6 | G157: 285 | H157: 1020.5 | I157: 0 | J157: 0 | K157: 0 | L157: 11.7 | M157: 15.2 | N157: 138.7 | O157: 10.4 | P157: 10.8 | Q157: 02:28:00
B158: 13.1 | C158: 81 | D158: 13.1 | E158: 3.6 | F158: 3.6 | G158: 319 | H158: 1020.6 | I158: 0 | J158: 0 | K158: 0 | L158: 11.7 | M158: 15.2 | N158: 138.7 | O158: 10.4 | P158: 10.9 | Q158: 02:29:00
B159: 13.1 | C159: 81 | D159: 13.1 | E159: 3.2 | F159: 3.6 | G159: 309 | H159: 1020.7 | I159: 0 | J159: 0 | K159: 0 | L159: 11.7 | M159: 15.2 | N159: 138.7 | O159: 10.4 | P159: 10.9 | Q159: 02:30:00
B160: 13.1 | C160: 81 | D160: 13.1 | E160: 2.9 | F160: 3.6 | G160: 288 | H160: 1020.4 | I160: 0 | J160: 0 | K160: 0 | L160: 11.7 | M160: 15.2 | N160: 138.7 | O160: 10.4 | P160: 10.9 | Q160: 02:31:00
B161: 13.1 | C161: 81 | D161: 13.1 | E161: 3.2 | F161: 3.6 | G161: 290 | H161: 1020.8 | I161: 0 | J161: 0 | K161: 0 | L161: 11.7 | M161: 15.2 | N161: 138.7 | O161: 10.4 | P161: 10.9 | Q161: 02:32:00
B162: 13.1 | C162: 81 | D162: 13.1 | E162: 4 | F162: 5.4 | G162: 269 | H162: 1020.8 | I162: 0 | J162: 0 | K162: 0 | L162: 11.7 | M162: 15.2 | N162: 138.7 | O162: 10.4 | P162: 10.9 | Q162: 02:33:00
B163: 13.1 | C163: 81 | D163: 13.1 | E163: 1.1 | F163: 1.8 | G163: 328 | H163: 1020.7 | I163: 0 | J163: 0 | K163: 0 | L163: 11.7 | M163: 15.2 | N163: 138.7 | O163: 10.4 | P163: 10.9 | Q163: 02:34:00
B164: 13.1 | C164: 81 | D164: 13.1 | E164: 2.2 | F164: 3.6 | G164: 328 | H164: 1020.7 | I164: 0 | J164: 0 | K164: 0 | L164: 11.7 | M164: 15.2 | N164: 138.7 | O164: 10.4 | P164: 10.9 | Q164: 02:35:00
B165: 13.1 | C165: 81 | D165: 13.1 | E165: 2.9 | F165: 3.6 | G165: 63 | H165: 1020.6 | I165: 0 | J165: 0 | K165: 0 | L165: 11.7 | M165: 15.2 | N165: 138.7 | O165: 10.4 | P165: 10.9 | Q165: 02:36:00
B166: 13.1 | C166: 81 | D166: 13.1 | E166: 2.2 | F166: 3.6 | G166: 283 | H166: 1020.6 | I166: 0 | J166: 0 | K166: 0 | L166: 11.7 | M166: 15.2 | N166: 138.7 | O166: 10.4 | P166: 10.9 | Q166: 02:37:00
B167: 13.1 | C167: 81 | D167: 13.1 | E167: 2.2 | F167: 3.6 | G167: 20 | H167: 1020.8 | I167: 0 | J167: 0 | K167: 0 | L167: 11.7 | M167: 15.2 | N167: 138.7 | O167: 10.4 | P167: 10.9 | Q167: 02:38:00
B168: 13.1 | C168: 81 | D168: 13.1 | E168: 3.6 | F168: 3.6 | G168: 290 | H168: 1020.7 | I168: 0 | J168: 0 | K168: 0 | L168: 11.7 | M168: 15.2 | N168: 138.7 | O168: 10.5 | P168: 10.9 | Q168: 02:39:00
B169: 13.1 | C169: 81 | D169: 13.1 | E169: 1.1 | F169: 1.8 | G169: 46 | H169: 1020.8 | I169: 0 | J169: 0 | K169: 0 | L169: 11.7 | M169: 15.2 | N169: 138.7 | O169: 10.5 | P169: 10.9 | Q169: 02:40:00
B170: 13.1 | C170: 81 | D170: 13.1 | E170: 1.8 | F170: 1.8 | G170: 45 | H170: 1020.8 | I170: 0 | J170: 0 | K170: 0 | L170: 11.7 | M170: 15.2 | N170: 138.7 | O170: 10.5 | P170: 10.9 | Q170: 02:41:00
B171: 13.1 | C171: 81 | D171: 13.1 | E171: 3.6 | F171: 3.6 | G171: 13 | H171: 1020.8 | I171: 0 | J171: 0 | K171: 0 | L171: 11.7 | M171: 15.2 | N171: 138.7 | O171: 10.5 | P171: 11 | Q171: 02:42:00
B172: 13.1 | C172: 81 | D172: 13.1 | E172: 3.6 | F172: 5.4 | G172: 123 | H172: 1020.8 | I172: 0 | J172: 0 | K172: 0 | L172: 11.7 | M172: 15.2 | N172: 138.7 | O172: 10.5 | P172: 11 | Q172: 02:43:00
B173: 13.1 | C173: 81 | D173: 13.1 | E173: 2.2 | F173: 3.6 | G173: 271 | H173: 1020.7 | I173: 0 | J173: 0 | K173: 0 | L173: 11.7 | M173: 15.2 | N173: 138.7 | O173: 10.5 | P173: 11 | Q173: 02:44:00
B174: 13.1 | C174: 81 | D174: 13.1 | E174: 2.5 | F174: 3.6 | G174: 97 | H174: 1021 | I174: 0 | J174: 0 | K174: 0 | L174: 11.7 | M174: 15.2 | N174: 138.7 | O174: 10.5 | P174: 11 | Q174: 02:45:00
B175: 13.2 | C175: 81 | D175: 13.2 | E175: 1.8 | F175: 1.8 | G175: 11 | H175: 1020.9 | I175: 0 | J175: 0 | K175: 0 | L175: 11.7 | M175: 15.2 | N175: 138.7 | O175: 10.5 | P175: 10.9 | Q175: 02:46:00
B176: 13.1 | C176: 81 | D176: 13.1 | E176: 1.4 | F176: 1.8 | G176: 37 | H176: 1020.9 | I176: 0 | J176: 0 | K176: 0 | L176: 11.7 | M176: 15.2 | N176: 138.7 | O176: 10.5 | P176: 11 | Q176: 02:47:00
B177: 13.1 | C177: 81 | D177: 13.1 | E177: 4.7 | F177: 5.4 | G177: 275 | H177: 1020.9 | I177: 0 | J177: 0 | K177: 0 | L177: 11.7 | M177: 15.2 | N177: 138.7 | O177: 10.5 | P177: 11 | Q177: 02:48:00
B178: 13.1 | C178: 81 | D178: 13.1 | E178: 1.4 | F178: 1.8 | G178: 56 | H178: 1020.8 | I178: 0 | J178: 0 | K178: 0 | L178: 11.7 | M178: 15.2 | N178: 138.7 | O178: 10.5 | P178: 11 | Q178: 02:49:00
B179: 13.1 | C179: 81 | D179: 13.1 | E179: 3.2 | F179: 3.6 | G179: 272 | H179: 1021 | I179: 0 | J179: 0 | K179: 0 | L179: 11.7 | M179: 15.2 | N179: 138.7 | O179: 10.5 | P179: 10.9 | Q179: 02:50:00
B180: 13.1 | C180: 81 | D180: 13.1 | E180: 3.6 | F180: 3.6 | G180: 284 | H180: 1020.8 | I180: 0 | J180: 0 | K180: 0 | L180: 11.7 | M180: 15.2 | N180: 138.7 | O180: 10.5 | P180: 11 | Q180: 02:51:00
B181: 13.2 | C181: 81 | D181: 13.2 | E181: 1.4 | F181: 1.8 | G181: 19 | H181: 1020.8 | I181: 0 | J181: 0 | K181: 0 | L181: 11.7 | M181: 15.2 | N181: 138.7 | O181: 10.6 | P181: 10.9 | Q181: 02:52:00
B182: 13.2 | C182: 81 | D182: 13.2 | E182: 2.9 | F182: 3.6 | G182: 301 | H182: 1020.8 | I182: 0 | J182: 0 | K182: 0 | L182: 11.7 | M182: 15.2 | N182: 138.7 | O182: 10.5 | P182: 11 | Q182: 02:53:00
B183: 13.2 | C183: 81 | D183: 13.2 | E183: 2.9 | F183: 3.6 | G183: 296 | H183: 1021 | I183: 0 | J183: 0 | K183: 0 | L183: 11.7 | M183: 15.2 | N183: 138.7 | O183: 10.6 | P183: 11 | Q183: 02:54:00
B184: 13.2 | C184: 81 | D184: 13.2 | E184: 2.9 | F184: 3.6 | G184: 56 | H184: 1020.8 | I184: 0 | J184: 0 | K184: 0 | L184: 11.7 | M184: 15.2 | N184: 138.7 | O184: 10.6 | P184: 10.9 | Q184: 02:55:00
B185: 13.2 | C185: 81 | D185: 13.2 | E185: 4.7 | F185: 5.4 | G185: 265 | H185: 1020.7 | I185: 0 | J185: 0 | K185: 0 | L185: 11.7 | M185: 15.2 | N185: 138.7 | O185: 10.6 | P185: 11 | Q185: 02:56:00
B186: 13.2 | C186: 81 | D186: 13.2 | E186: 4.3 | F186: 5.4 | G186: 236 | H186: 1020.7 | I186: 0 | J186: 0 | K186: 0 | L186: 11.7 | M186: 15.2 | N186: 138.7 | O186: 10.6 | P186: 11 | Q186: 02:57:00
B187: 13.2 | C187: 81 | D187: 13.2 | E187: 4 | F187: 5.4 | G187: 305 | H187: 1020.6 | I187: 0 | J187: 0 | K187: 0 | L187: 11.7 | M187: 15.2 | N187: 138.7 | O187: 10.6 | P187: 11 | Q187: 02:58:00
B188: 13.2 | C188: 81 | D188: 13.2 | E188: 2.5 | F188: 3.6 | G188: 0 | H188: 1020.8 | I188: 0 | J188: 0 | K188: 0 | L188: 11.7 | M188: 15.2 | N188: 138.7 | O188: 10.6 | P188: 11 | Q188: 02:59:00
B189: 13.2 | C189: 81 | D189: 13.2 | E189: 2.9 | F189: 3.6 | G189: 306 | H189: 1020.8 | I189: 0 | J189: 0 | K189: 0 | L189: 11.7 | M189: 15.2 | N189: 138.7 | O189: 10.6 | P189: 11 | Q189: 03:00:00
B190: 13.2 | C190: 81 | D190: 13.2 | E190: 4 | F190: 5.4 | G190: 264 | H190: 1020.9 | I190: 0 | J190: 0 | K190: 0 | L190: 11.7 | M190: 15.2 | N190: 138.7 | O190: 10.6 | P190: 11 | Q190: 03:01:00
B191: 13.3 | C191: 81 | D191: 13.3 | E191: 2.9 | F191: 3.6 | G191: 255 | H191: 1021 | I191: 0 | J191: 0 | K191: 0 | L191: 11.7 | M191: 15.2 | N191: 138.7 | O191: 10.6 | P191: 11 | Q191: 03:02:00
B192: 13.3 | C192: 80 | D192: 13.3 | E192: 1.8 | F192: 1.8 | G192: 321 | H192: 1020.6 | I192: 0 | J192: 0 | K192: 0 | L192: 11.7 | M192: 15.2 | N192: 138.7 | O192: 10.6 | P192: 11.1 | Q192: 03:03:00
B193: 13.3 | C193: 81 | D193: 13.3 | E193: 3.2 | F193: 3.6 | G193: 330 | H193: 1020.7 | I193: 0 | J193: 0 | K193: 0 | L193: 11.7 | M193: 15.2 | N193: 138.7 | O193: 10.6 | P193: 11.1 | Q193: 03:04:00
B194: 13.2 | C194: 81 | D194: 13.2 | E194: 2.2 | F194: 3.6 | G194: 296 | H194: 1020.9 | I194: 0 | J194: 0 | K194: 0 | L194: 11.7 | M194: 15.2 | N194: 138.7 | O194: 10.6 | P194: 11 | Q194: 03:05:00
B195: 13.2 | C195: 81 | D195: 13.2 | E195: 2.9 | F195: 3.6 | G195: 305 | H195: 1020.6 | I195: 0 | J195: 0 | K195: 0 | L195: 11.7 | M195: 15.2 | N195: 138.7 | O195: 10.6 | P195: 11.1 | Q195: 03:06:00
B196: 13.2 | C196: 81 | D196: 13.2 | E196: 2.5 | F196: 3.6 | G196: 280 | H196: 1020.9 | I196: 0 | J196: 0 | K196: 0 | L196: 11.7 | M196: 15.2 | N196: 138.7 | O196: 10.6 | P196: 11.1 | Q196: 03:07:00
B197: 13.2 | C197: 81 | D197: 13.2 | E197: 3.6 | F197: 3.6 | G197: 263 | H197: 1020.8 | I197: 0 | J197: 0 | K197: 0 | L197: 11.7 | M197: 15.2 | N197: 138.7 | O197: 10.6 | P197: 11.1 | Q197: 03:08:00
B198: 13.2 | C198: 81 | D198: 13.2 | E198: 1.4 | F198: 3.6 | G198: 290 | H198: 1020.7 | I198: 0 | J198: 0 | K198: 0 | L198: 11.7 | M198: 15.2 | N198: 138.7 | O198: 10.6 | P198: 11.1 | Q198: 03:09:00
B199: 13.2 | C199: 81 | D199: 13.2 | E199: 2.2 | F199: 3.6 | G199: 144 | H199: 1020.9 | I199: 0 | J199: 0 | K199: 0 | L199: 11.7 | M199: 15.2 | N199: 138.7 | O199: 10.6 | P199: 11.1 | Q199: 03:10:00
B200: 13.2 | C200: 81 | D200: 13.2 | E200: 3.6 | F200: 3.6 | G200: 260 | H200: 1020.8 | I200: 0 | J200: 0 | K200: 0 | L200: 11.7 | M200: 15.2 | N200: 138.7 | O200: 10.6 | P200: 11.1 | Q200: 03:11:00
... 1134 more rows

Sheet MAI_2022
BB1: La Rochelle | BC1: http://www.meteociel.fr/climatologie/villes.php?code=7316&mois=4&annee=2022 | BN1: Ephéméride | BO1: http://www.ephemeride.com/calendrier/solaire/19/horaires-du-soleil.html
AD3: =$C$5 -> Mai_2022 | AG3: Hauteur de pluie en mm | AK3: Temps de précipitations par 1/4 de journée | AU3: =$C$5 -> Mai_2022 | AX3: Chaleur solaire | BB3: Marées | BC3: https://marine.meteoconsult.fr/meteo-marine/horaires-maree-la-tranche-sur-mer-1083-0.php
C5: Mai_2022 | F5: Mise à jour | H5: le | J5: =NOW() -> 2022-05-25T18:55:23.240 | U5: =C5 -> Mai_2022 | X5: =NOW() -> 2022-05-25T18:55:23.240 | AD5: Mise à jour | AG5: =SUM($AG$11:$AG$72) -> 12.2 | AI5: =SUM($AI$11:$AI$72) -> 0.3868055556 | AK5: =SUM(AK$11:AK$72) -> 0.2402777778 | AM5: =SUM(AM$11:AM$72) -> 0.1236111111 | AO5: =SUM(AO$11:AO$72) -> 0.1597222222 | AQ5: =SUM(AQ$11:AQ$72) -> 0 | AU5: Mise à jour | AX5: =SUM(AX$11:AX$72) -> 12.81388889 | BB5: T° de l'eau | BC5: https://fr.surf-forecast.com/breaks/La-Tranchesur-Mer/seatemp | BN5: meteofloralies | BO5: https://www.wunderground.com/dashboard/pws/ILATRA6
C7: Températures | F7: =MIN(F11:F72) -> 17.5 | H7: =VLOOKUP($F$7,$F$11:$V$72,17,0) -> 2022-05-24 | J7: =MIN($J$11:$J$72) -> 8.7 | L7: =VLOOKUP($J$7,$J$11:$V$72,13,0) -> 2022-05-05 | N7: =MAX(N11:N55) -> 29.8 | P7: =VLOOKUP($N$7,$N$11:$V$72,9,0) -> 2022-05-18 | U7: Mise à jour | X7: Maxi | AD7: =TODAY() -> 2022-05-25 | AG7: =VLOOKUP($AG$9,$AG$11:$AV$72,16,0) -> 2022-05-23 | AI7: =VLOOKUP($AI$9,$AI$11:$AV$72,14,0) -> 2022-05-23 | AK7: Pluie AM | AM7: Pluie AM | AO7: Pluie AP | AQ7: Pluie AP | AU7: =TODAY() -> 2022-05-25 | AX7: =VLOOKUP($AX$9,$AX$11:$BB$72,5,0) -> 2022-05-17
F9: Ressentie | H9: =VLOOKUP($F$7,$F$11:$P$72,3,0) -> 17:35:00 | J9: Mini | L9: =VLOOKUP($J$7,$J$11:$L$72,3,0) -> 06:41:00 | N9: Maxi | P9: =VLOOKUP($N$7,$N$11:$P$72,3,0) -> 16:13:00 | U9: Vitesse du vent | X9: =MAX($X$11:$X$72) -> 40.3 | Z9: =VLOOKUP($X$9,$X$11:$AE$72,8,0) -> 2022-05-05 | AD9: =BB9+AG5 -> 135.7 | AE9: Année | AG9: =MAX($AG$11:$AG$72) -> 11.2 | AI9: =MAX($AI$11:AI$72) -> 0.2569444444 | AK9: de 0 à 6h59 | AM9: 7h à 11h59 | AO9: 12h à 18h59 | AQ9: 19h à 23h59 | AU9: Soleil de l'Année | AV9: =BC9+AX5 -> 29.21388889 | AX9: =MAX($AX$11:$AX$72) -> 0.5861111111 | BB9: 123.5 | BC9: 16.4 | BE9: Météofloralies | BF9: =SUBSTITUE(TEXTE(MAX(CNUM(SUBSTITUE($U$2;".";","));CNUM(SUBSTITUE($V$2;".";",")));"standard");",";".")
C11: =PROPER(TEXT(D11,"JJJJ")) -> Dimanche | D11: 2022-05-01 | F11: 19.5 | H11: 0.6520833333 | J11: 9.7 | L11: 0.2895833333 | N11: 19.5 | P11: 0.6520833333 | U11: =$C11 -> Dimanche | V11: =$D11 -> 2022-05-01 | X11: 20.2 | Z11: 19:20:00 | AD11: =$C11 -> Dimanche | AE11: =$D11 -> 2022-05-01 | AG11: 0 | AI11: 00:00:00 | AK11: 00:00:00 | AM11: 00:00:00 | AO11: 00:00:00 | AQ11: 00:00:00 | AU11: =$C11 -> Dimanche | AV11: =$D11 -> 2022-05-01 | AX11: 10:15:00 | BA11: 3 | BB11: =D11 -> 2022-05-01 | BC11: =$C11 -> Dimanche
C13: =PROPER(TEXT(D13,"JJJJ")) -> Lundi | D13: =$D11+1 -> 2022-05-02 | F13: 20.4 | H13: 0.7145833333 | J13: 10.1 | L13: 0.3006944444 | N13: 20.4 | P13: 0.7145833333 | U13: =$C13 -> Lundi | V13: =$D13 -> 2022-05-02 | X13: 29.5 | Z13: 13:58:00 | AD13: =$C13 -> Lundi | AE13: =$D13 -> 2022-05-02 | AG13: 0 | AI13: 00:00:00 | AK13: 00:00:00 | AM13: 00:00:00 | AO13: 00:00:00 | AQ13: 00:00:00 | AU13: =$C13 -> Lundi | AV13: =$D13 -> 2022-05-02 | AX13: 12:19:00 | BA13: 4 | BB13: =D13 -> 2022-05-02 | BC13: =$C13 -> Lundi
C15: =PROPER(TEXT(D15,"JJJJ")) -> Mardi | D15: =$D13+1 -> 2022-05-03 | F15: 21.5 | H15: 0.7034722222 | J15: 9.4 | L15: 0.2979166667 | N15: 21.5 | P15: 0.7034722222 | U15: =$C15 -> Mardi | V15: =$D15 -> 2022-05-03 | X15: 25.6 | Z15: 13:39:00 | AD15: =$C15 -> Mardi | AE15: =$D15 -> 2022-05-03 | AG15: 0 | AI15: 00:00:00 | AK15: 00:00:00 | AM15: 00:00:00 | AO15: 00:00:00 | AQ15: 00:00:00 | AU15: =$C15 -> Mardi | AV15: =$D15 -> 2022-05-03 | AX15: 12:58:00 | BA15: 5 | BB15: =D15 -> 2022-05-03 | BC15: =$C15 -> Mardi
C17: =PROPER(TEXT(D17,"JJJJ")) -> Mercredi | D17: =$D15+1 -> 2022-05-04 | F17: 18.6 | H17: 0.6666666667 | J17: 9.5 | L17: 0.2569444444 | N17: 18.6 | P17: 0.6666666667 | U17: =$C17 -> Mercredi | V17: =$D17 -> 2022-05-04 | X17: 27.7 | Z17: 16:02:00 | AD17: =$C17 -> Mercredi | AE17: =$D17 -> 2022-05-04 | AG17: 0 | AI17: 00:00:00 | AK17: 00:00:00 | AM17: 00:00:00 | AO17: 00:00:00 | AQ17: 00:00:00 | AU17: =$C17 -> Mercredi | AV17: =$D17 -> 2022-05-04 | AX17: 11:19:00 | BA17: 6 | BB17: =D17 -> 2022-05-04 | BC17: =$C17 -> Mercredi
C19: =PROPER(TEXT(D19,"JJJJ")) -> Jeudi | D19: =$D17+1 -> 2022-05-05 | F19: 18.2 | H19: 0.7104166667 | J19: 8.7 | L19: 0.2784722222 | N19: 18.2 | P19: 0.7104166667 | U19: =$C19 -> Jeudi | V19: =$D19 -> 2022-05-05 | X19: 40.3 | Z19: 00:08:00 | AD19: =$C19 -> Jeudi | AE19: =$D19 -> 2022-05-05 | AG19: 0 | AI19: 00:00:00 | AK19: 00:00:00 | AM19: 00:00:00 | AO19: 00:00:00 | AQ19: 00:00:00 | AU19: =$C19 -> Jeudi | AV19: =$D19 -> 2022-05-05 | AX19: 12:48:00 | BA19: 7 | BB19: =D19 -> 2022-05-05 | BC19: =$C19 -> Jeudi
C21: =PROPER(TEXT(D21,"JJJJ")) -> Vendredi | D21: =$D19+1 -> 2022-05-06 | F21: 22.1 | H21: 0.7354166667 | J21: 9.2 | L21: 0.2840277778 | N21: 22.1 | P21: 0.7354166667 | U21: =$C21 -> Vendredi | V21: =$D21 -> 2022-05-06 | X21: 27.7 | Z21: 13:06:00 | AD21: =$C21 -> Vendredi | AE21: =$D21 -> 2022-05-06 | AG21: 0 | AI21: 00:00:00 | AK21: 00:00:00 | AM21: 00:00:00 | AO21: 00:00:00 | AQ21: 00:00:00 | AU21: =$C21 -> Vendredi | AV21: =$D21 -> 2022-05-06 | AX21: 12:52:00 | BA21: 8 | BB21: =D21 -> 2022-05-06 | BC21: =$C21 -> Vendredi
C23: =PROPER(TEXT(D23,"JJJJ")) -> Samedi | D23: =$D21+1 -> 2022-05-07 | F23: 20.5 | H23: 0.5277777778 | J23: 13.9 | L23: 0.3895833333 | N23: 20.5 | P23: 0.5277777778 | U23: =$C23 -> Samedi | V23: =$D23 -> 2022-05-07 | X23: 26.5 | Z23: 15:40:00 | AD23: =$C23 -> Samedi | AE23: =$D23 -> 2022-05-07 | AG23: 0 | AI23: 00:00:00 | AK23: 00:00:00 | AM23: 00:00:00 | AO23: 00:00:00 | AQ23: 00:00:00 | AU23: =$C23 -> Samedi | AV23: =$D23 -> 2022-05-07 | AX23: 12:54:00 | BA23: 9 | BB23: =D23 -> 2022-05-07 | BC23: =$C23 -> Samedi
C25: =PROPER(TEXT(D25,"JJJJ")) -> Dimanche | D25: =$D23+1 -> 2022-05-08 | F25: 23.2 | H25: 0.6333333333 | J25: 11.2 | L25: 0.2881944444 | N25: 23.2 | P25: 0.6333333333 | U25: =$C25 -> Dimanche | V25: =$D25 -> 2022-05-08 | X25: 20.2 | Z25: 17:12:00 | AD25: =$C25 -> Dimanche | AE25: =$D25 -> 2022-05-08 | AG25: 0 | AI25: 00:00:00 | AK25: 00:00:00 | AM25: 00:00:00 | AO25: 00:00:00 | AQ25: 00:00:00 | AU25: =$C25 -> Dimanche | AV25: =$D25 -> 2022-05-08 | AX25: 13:08:00 | BA25: 10 | BB25: =D25 -> 2022-05-08 | BC25: =$C25 -> Dimanche
C27: =PROPER(TEXT(D27,"JJJJ")) -> Lundi | D27: =$D25+1 -> 2022-05-09 | F27: 26 | H27: 0.6652777778 | J27: 12.2 | L27: 0.2840277778 | N27: 26 | P27: 0.6652777778 | U27: =$C27 -> Lundi | V27: =$D27 -> 2022-05-09 | X27: 22 | Z27: 16:38:00 | AD27: =$C27 -> Lundi | AE27: =$D27 -> 2022-05-09 | AG27: 0 | AI27: 00:00:00 | AK27: 00:00:00 | AM27: 00:00:00 | AO27: 00:00:00 | AQ27: 00:00:00 | AU27: =$C27 -> Lundi | AV27: =$D27 -> 2022-05-09 | AX27: 13:22:00 | BA27: 11 | BB27: =D27 -> 2022-05-09 | BC27: =$C27 -> Lundi
C29: =PROPER(TEXT(D29,"JJJJ")) -> Mardi | D29: =$D27+1 -> 2022-05-10 | F29: 25 | H29: 0.6888888889 | J29: 14.3 | L29: 0.29375 | N29: 25 | P29: 0.6888888889 | U29: =$C29 -> Mardi | V29: =$D29 -> 2022-05-10 | X29: 18.4 | Z29: 19:47:00 | AD29: =$C29 -> Mardi | AE29: =$D29 -> 2022-05-10 | AG29: 0 | AI29: 00:00:00 | AK29: 00:00:00 | AM29: 00:00:00 | AO29: 00:00:00 | AQ29: 00:00:00 | AU29: =$C29 -> Mardi | AV29: =$D29 -> 2022-05-10 | AX29: 13:24:00 | BA29: 12 | BB29: =D29 -> 2022-05-10 | BC29: =$C29 -> Mardi
C31: =PROPER(TEXT(D31,"JJJJ")) -> Mercredi | D31: =$D29+1 -> 2022-05-11 | F31: 19.2 | H31: 0.6430555556 | J31: 11 | L31: 0.3208333333 | N31: 19.2 | P31: 0.6430555556 | U31: =$C31 -> Mercredi | V31: =$D31 -> 2022-05-11 | X31: 25.6 | Z31: 18:22:00 | AD31: =$C31 -> Mercredi | AE31: =$D31 -> 2022-05-11 | AG31: 0 | AI31: 00:00:00 | AK31: 00:00:00 | AM31: 00:00:00 | AO31: 00:00:00 | AQ31: 00:00:00 | AU31: =$C31 -> Mercredi | AV31: =$D31 -> 2022-05-11 | AX31: 13:37:00 | BA31: 13 | BB31: =D31 -> 2022-05-11 | BC31: =$C31 -> Mercredi
C33: =PROPER(TEXT(D33,"JJJJ")) -> Jeudi | D33: =$D31+1 -> 2022-05-12 | F33: 18.5 | H33: 0.5354166667 | J33: 12.7 | L33: 0.3027777778 | N33: 18.5 | P33: 0.5354166667 | U33: =$C33 -> Jeudi | V33: =$D33 -> 2022-05-12 | X33: 23.8 | Z33: 18:04:00 | AD33: =$C33 -> Jeudi | AE33: =$D33 -> 2022-05-12 | AG33: 0 | AI33: 00:00:00 | AK33: 00:00:00 | AM33: 00:00:00 | AO33: 00:00:00 | AQ33: 00:00:00 | AU33: =$C33 -> Jeudi | AV33: =$D33 -> 2022-05-12 | AX33: 11:54:00 | BA33: 14 | BB33: =D33 -> 2022-05-12 | BC33: =$C33 -> Jeudi
C35: =PROPER(TEXT(D35,"JJJJ")) -> Vendredi | D35: =$D33+1 -> 2022-05-13 | F35: 22.1 | H35: 14:24:00 | J35: 11.6 | L35: 06:48:00 | N35: 22.1 | P35: 14:24:00 | U35: =$C35 -> Vendredi | V35: =$D35 -> 2022-05-13 | X35: 25.6 | Z35: 18:07:00 | AD35: =$C35 -> Vendredi | AE35: =$D35 -> 2022-05-13 | AG35: 0 | AI35: 00:00:00 | AK35: 00:00:00 | AM35: 00:00:00 | AO35: 00:00:00 | AQ35: 00:00:00 | AU35: =$C35 -> Vendredi | AV35: =$D35 -> 2022-05-13 | AX35: 13:19:00 | BA35: 15 | BB35: =D35 -> 2022-05-13 | BC35: =$C35 -> Vendredi
C37: =PROPER(TEXT(D37,"JJJJ")) -> Samedi | D37: =$D35+1 -> 2022-05-14 | F37: 28.8 | H37: 18:31:00 | J37: 13.4 | L37: 04:56:00 | N37: 28.8 | P37: 18:31:00 | U37: =$C37 -> Samedi | V37: =$D37 -> 2022-05-14 | X37: 18.4 | Z37: 23:47:00 | AD37: =$C37 -> Samedi | AE37: =$D37 -> 2022-05-14 | AG37: 0 | AI37: 00:00:00 | AK37: 00:00:00 | AM37: 00:00:00 | AO37: 00:00:00 | AQ37: 00:00:00 | AU37: =$C37 -> Samedi | AV37: =$D37 -> 2022-05-14 | AX37: 13:25:00 | BA37: 16 | BB37: =D37 -> 2022-05-14 | BC37: =$C37 -> Samedi
C39: =PROPER(TEXT(D39,"JJJJ")) -> Dimanche | D39: =$D37+1 -> 2022-05-15 | F39: 24.7 | H39: 14:02:00 | J39: 16.1 | L39: 23:51:00 | N39: 24.7 | P39: 14:02:00 | U39: =$C39 -> Dimanche | V39: =$D39 -> 2022-05-15 | X39: 23.8 | Z39: 19:08:00 | AD39: =$C39 -> Dimanche | AE39: =$D39 -> 2022-05-15 | AG39: 0 | AI39: 00:00:00 | AK39: 03:17:00 | AM39: 00:00:00 | AO39: 00:00:00 | AQ39: 00:00:00 | AU39: =$C39 -> Dimanche | AV39: =$D39 -> 2022-05-15 | AX39: 13:33:00 | BA39: 17 | BB39: =D39 -> 2022-05-15 | BC39: =$C39 -> Dimanche
C41: =PROPER(TEXT(D41,"JJJJ")) -> Lundi | D41: =$D39+1 -> 2022-05-16 | F41: 24.7 | H41: 14:20:00 | J41: 15.7 | L41: 04:57:00 | N41: 24.7 | P41: 14:20:00 | U41: =$C41 -> Lundi | V41: =$D41 -> 2022-05-16 | X41: 18.4 | Z41: 18:15:00 | AD41: =$C41 -> Lundi | AE41: =$D41 -> 2022-05-16 | AG41: 0.5 | AI41: 01:12:00 | AK41: 00:41:00 | AM41: 00:31:00 | AO41: 00:00:00 | AQ41: 00:00:00 | AU41: =$C41 -> Lundi | AV41: =$D41 -> 2022-05-16 | AX41: 13:21:00 | BA41: 18 | BB41: =D41 -> 2022-05-16 | BC41: =$C41 -> Lundi
C43: =PROPER(TEXT(D43,"JJJJ")) -> Mardi | D43: =$D41+1 -> 2022-05-17 | F43: 26.3 | H43: 12:44:00 | J43: 12.4 | L43: 06:50:00 | N43: 26.3 | P43: 12:44:00 | U43: =$C43 -> Mardi | V43: =$D43 -> 2022-05-17 | X43: 23.8 | Z43: 21:14:00 | AD43: =$C43 -> Mardi | AE43: =$D43 -> 2022-05-17 | AG43: 0 | AI43: 00:00:00 | AK43: 00:00:00 | AM43: 00:00:00 | AO43: 00:00:00 | AQ43: 00:00:00 | AU43: =$C43 -> Mardi | AV43: =$D43 -> 2022-05-17 | AX43: 14:04:00 | BA43: 19 | BB43: =D43 -> 2022-05-17 | BC43: =$C43 -> Mardi
C45: =PROPER(TEXT(D45,"JJJJ")) -> Mercredi | D45: =$D43+1 -> 2022-05-18 | F45: 29.8 | H45: 16:15:00 | J45: 13.9 | L45: 07:05:00 | N45: 29.8 | P45: 16:13:00 | U45: =$C45 -> Mercredi | V45: =$D45 -> 2022-05-18 | X45: 25.6 | Z45: 20:54:00 | AD45: =$C45 -> Mercredi | AE45: =$D45 -> 2022-05-18 | AG45: 0 | AI45: 00:00:00 | AK45: 00:00:00 | AM45: 00:00:00 | AO45: 00:00:00 | AQ45: 00:00:00 | AU45: =$C45 -> Mercredi | AV45: =$D45 -> 2022-05-18 | AX45: 13:24:00 | BA45: 20 | BB45: =D45 -> 2022-05-18 | BC45: =$C45 -> Mercredi
C47: =PROPER(TEXT(D47,"JJJJ")) -> Jeudi | D47: =$D45+1 -> 2022-05-19 | F47: 23 | H47: 15:13:00 | J47: 15.8 | L47: 05:28:00 | N47: 23 | P47: 15:13:00 | U47: =$C47 -> Jeudi | V47: =$D47 -> 2022-05-19 | X47: 20.2 | Z47: 16:35:00 | AD47: =$C47 -> Jeudi | AE47: =$D47 -> 2022-05-19 | AG47: 0 | AI47: 00:00:00 | AK47: 00:00:00 | AM47: 00:00:00 | AO47: 00:00:00 | AQ47: 00:00:00 | AU47: =$C47 -> Jeudi | AV47: =$D47 -> 2022-05-19 | AX47: 12:47:00 | BA47: 21 | BB47: =D47 -> 2022-05-19 | BC47: =$C47 -> Jeudi
C49: =PROPER(TEXT(D49,"JJJJ")) -> Vendredi | D49: =$D47+1 -> 2022-05-20 | F49: 21.8 | H49: 13:26:00 | J49: 15.1 | L49: 23:53:00 | N49: 21.8 | P49: 13:26:00 | U49: =$C49 -> Vendredi | V49: =$D49 -> 2022-05-20 | X49: 31.3 | Z49: 14:33:00 | AD49: =$C49 -> Vendredi | AE49: =$D49 -> 2022-05-20 | AG49: 0 | AI49: 00:00:00 | AK49: 00:00:00 | AM49: 00:00:00 | AO49: 00:00:00 | AQ49: 00:00:00 | AU49: =$C49 -> Vendredi | AV49: =$D49 -> 2022-05-20 | AX49: 13:50:00 | BA49: 22 | BB49: =D49 -> 2022-05-20 | BC49: =$C49 -> Vendredi
C51: =PROPER(TEXT(D51,"JJJJ")) -> Samedi | D51: =$D49+1 -> 2022-05-21 | F51: 28.8 | H51: 15:21:00 | J51: 10.8 | L51: 06:21:00 | N51: 28.8 | P51: 18:24:00 | U51: =$C51 -> Samedi | V51: =$D51 -> 2022-05-21 | X51: 18.4 | Z51: 13:09:00 | AD51: =$C51 -> Samedi | AE51: =$D51 -> 2022-05-21 | AG51: 0 | AI51: 00:00:00 | AK51: 00:00:00 | AM51: 00:00:00 | AO51: 00:00:00 | AQ51: 00:00:00 | AU51: =$C51 -> Samedi | AV51: =$D51 -> 2022-05-21 | AX51: 13:20:00 | BA51: 23 | BB51: =D51 -> 2022-05-21 | BC51: =$C51 -> Samedi
C53: =PROPER(TEXT(D53,"JJJJ")) -> Dimanche | D53: =$D51+1 -> 2022-05-22 | F53: 29.8 | H53: 15:28:00 | J53: 17.5 | L53: 07:29:00 | N53: 29.8 | P53: 16:33:00 | U53: =$C53 -> Dimanche | V53: =$D53 -> 2022-05-22 | X53: 18.4 | Z53: 07:20:00 | AD53: =$C53 -> Dimanche | AE53: =$D53 -> 2022-05-22 | AG53: 0.3 | AI53: 00:58:00 | AK53: 00:00:00 | AM53: 00:58:00 | AO53: 00:00:00 | AQ53: 00:00:00 | AU53: =$C53 -> Dimanche | AV53: =$D53 -> 2022-05-22 | AX53: 12:21:00 | BA53: 24 | BB53: =D53 -> 2022-05-22 | BC53: =$C53 -> Dimanche
C55: =PROPER(TEXT(D55,"JJJJ")) -> Lundi | D55: =$D53+1 -> 2022-05-23 | F55: 18.8 | H55: 00:00:00 | J55: 13 | L55: 22:21:00 | N55: 18.8 | P55: 00:00:00 | U55: =$C55 -> Lundi | V55: =$D55 -> 2022-05-23 | X55: 36.7 | Z55: 10:43:00 | AD55: =$C55 -> Lundi | AE55: =$D55 -> 2022-05-23 | AG55: 11.2 | AI55: 06:10:00 | AK55: 01:48:00 | AM55: 01:29:00 | AO55: 02:53:00 | AQ55: 00:00:00 | AU55: =$C55 -> Lundi | AV55: =$D55 -> 2022-05-23 | AX55: 09:34:00 | BA55: 25 | BB55: =D55 -> 2022-05-23 | BC55: =$C55 -> Lundi
C57: =PROPER(TEXT(D57,"JJJJ")) -> Mardi | D57: =$D55+1 -> 2022-05-24 | F57: 17.5 | H57: 17:35:00 | J57: 12.7 | L57: 07:18:00 | N57: 17.5 | P57: 17:35:00 | U57: =$C57 -> Mardi | V57: =$D57 -> 2022-05-24 | X57: 29.5 | Z57: 00:07:00 | AD57: =$C57 -> Mardi | AE57: =$D57 -> 2022-05-24 | AG57: 0.2 | AI57: 00:57:00 | AK57: 00:00:00 | AM57: 00:00:00 | AO57: 00:57:00 | AQ57: 00:00:00 | AU57: =$C57 -> Mardi | AV57: =$D57 -> 2022-05-24 | AX57: 13:44:00 | BA57: 26 | BB57: =D57 -> 2022-05-24 | BC57: =$C57 -> Mardi
C59: =PROPER(TEXT(D59,"JJJJ")) -> Mercredi | D59: =$D57+1 -> 2022-05-25 | U59: =$C59 -> Mercredi | V59: =$D59 -> 2022-05-25 | AD59: =$C59 -> Mercredi | AE59: =$D59 -> 2022-05-25 | AU59: =$C59 -> Mercredi | AV59: =$D59 -> 2022-05-25 | BA59: 27 | BB59: =D59 -> 2022-05-25 | BC59: =$C59 -> Mercredi
C61: =PROPER(TEXT(D61,"JJJJ")) -> Jeudi | D61: =$D59+1 -> 2022-05-26 | U61: =$C61 -> Jeudi | V61: =$D61 -> 2022-05-26 | AD61: =$C61 -> Jeudi | AE61: =$D61 -> 2022-05-26 | AU61: =$C61 -> Jeudi | AV61: =$D61 -> 2022-05-26 | BA61: 28 | BB61: =D61 -> 2022-05-26 | BC61: =$C61 -> Jeudi
C63: =PROPER(TEXT(D63,"JJJJ")) -> Vendredi | D63: =$D61+1 -> 2022-05-27 | U63: =$C63 -> Vendredi | V63: =$D63 -> 2022-05-27 | AD63: =$C63 -> Vendredi | AE63: =$D63 -> 2022-05-27 | AU63: =$C63 -> Vendredi | AV63: =$D63 -> 2022-05-27 | BA63: 29 | BB63: =D63 -> 2022-05-27 | BC63: =$C63 -> Vendredi
C65: =PROPER(TEXT(D65,"JJJJ")) -> Samedi | D65: =$D63+1 -> 2022-05-28 | U65: =$C65 -> Samedi | V65: =$D65 -> 2022-05-28 | AD65: =$C65 -> Samedi | AE65: =$D65 -> 2022-05-28 | AU65: =$C65 -> Samedi | AV65: =$D65 -> 2022-05-28 | BA65: 30 | BB65: =D65 -> 2022-05-28 | BC65: =$C65 -> Samedi
C67: =PROPER(TEXT(D67,"JJJJ")) -> Dimanche | D67: =$D65+1 -> 2022-05-29 | U67: =$C67 -> Dimanche | V67: =$D67 -> 2022-05-29 | AD67: =$C67 -> Dimanche | AE67: =$D67 -> 2022-05-29 | AU67: =$C67 -> Dimanche | AV67: =$D67 -> 2022-05-29 | BA67: 24 | BB67: =D67 -> 2022-05-29 | BC67: =$C67 -> Dimanche
C69: =PROPER(TEXT(D69,"JJJJ")) -> Lundi | D69: =$D67+1 -> 2022-05-30 | U69: =$C69 -> Lundi | V69: =$D69 -> 2022-05-30 | AD69: =$C69 -> Lundi | AE69: =$D69 -> 2022-05-30 | AU69: =$C69 -> Lundi | AV69: =$D69 -> 2022-05-30 | BA69: 25 | BB69: =D69 -> 2022-05-30 | BC69: =$C69 -> Lundi
C71: =PROPER(TEXT(D71,"JJJJ")) -> Mardi | D71: =$D69+1 -> 2022-05-31 | U71: =$C71 -> Mardi | V71: =$D71 -> 2022-05-31 | AD71: =$C71 -> Mardi | AE71: =$D71 -> 2022-05-31 | AU71: =$C71 -> Mardi | AV71: =$D71 -> 2022-05-31 | BA71: 26 | BB71: =D71 -> 2022-05-31 | BC71: =$C71 -> Mardi
BF77: J7 | BH77: N7 | BJ77: X9 | BL77: AG5 | BN77: AX5
BL79: =SUM(BL83:BL85) -> 96.8 | BN79: =SUM(BN83:BN85) -> 16.4
BE81: T° Mini | BF81: =MIN(BF83:BF103) -> -3.5 | BG81: T° Maxi | BH81: =MAX(BH83:BH103) -> 29.8 | BI81: Vent | BJ81: =MAX(BJ83:BJ103) -> 57.5 | BK81: Pluie | BL81: =MAX(BL83:BL103) -> 41.1 | BM81: Soleil | BN81: =MAX(BN83:BN103) -> 12.81388889
BE83: Janvier | BF83: -3.5 | BG83: =BE83 -> Janvier | BH83: 13.2 | BI83: =BE83 -> Janvier | BJ83: 57.5 | BK83: =BE83 -> Janvier | BL83: 41.1 | BM83: =BE83 -> Janvier | BN83: 4.416666667
BE84: Février | BF84: -2.1 | BG84: =BE84 -> Février | BH84: 16.6 | BI84: =BE84 -> Février | BJ84: 47.9 | BK84: =BE84 -> Février | BL84: 23.4 | BM84: =BE84 -> Février | BN84: 4.966666667
BE85: Mars | BF85: -0.2 | BG85: =BE85 -> Mars | BH85: 22.1 | BI85: =BE85 -> Mars | BJ85: 43.69 | BK85: =BE85 -> Mars | BL85: 32.3 | BM85: =BE85 -> Mars | BN85: 7.016666667
BE86: Avril | BF86: =J7 -> 8.7 | BG86: =BE86 -> Avril | BH86: =N7 -> 29.8 | BI86: =BE86 -> Avril | BJ86: =X9 -> 40.3 | BK86: =BE86 -> Avril | BL86: =AG5 -> 12.2 | BM86: =BE86 -> Avril | BN86: =AX5 -> 12.81388889

Sheet MINI-MAXI
A1: =MAI_2022!C5 -> Mai_2022
I2: 1900-05-24
D3: Pluie Maxi Jour et total mois | G3: Températures Mini et Maxi | I3: =I1-940 -> -940
F4: Vent maxi | I4: 3
I5: =I2-I3-I4 -> 1082
A6: Jour | B6: Mois | D6: __200
D7: __180 | E7: =INDIRECT($A$1&"!$W9") -> 00:00:00 | I7: =MAI_2022!J7 -> 8.7
D8: __160 | E8: 132 | I8: 145
A9: =INDIRECT($A$1&"!$AG5") -> 12.2 | B9: =INDIRECT($A$1&"!$AG9") -> 11.2 | D9: __140 | E9: =INDIRECT($A$1&"!$X$9") -> 40.3 | I9: =I7-940 -> -931.3
A10: 200 | B10: 200 | D10: __120 | E10: 2 | I10: 3
A11: =100*(1-(A9/A10)) -> 93.9 | B11: =100*(1-(B9/B10)) -> 94.4 | D11: __100 | E11: =E8-E9-E10 -> 89.7 | I11: =I8-I9-I10 -> 1073.3
A12: =20*A11/100 -> 18.78 | B12: =20*B11/100 -> 18.88 | D12: __80 | F12: Soleil maxi
A13: 17 | B13: 28 | D13: __60
A14: =(A10/100)*(1+(2*A10/100))/2 -> 5 | B14: =(B10/100)*(1+(2*B10/100))/2 -> 5 | D14: __40 | I14: 22:00:00
D15: _20 | I15: 00:00:00
A16: =INDIRECT($A1&"!$AG9") -> 11.2 | I16: =MAI_2022!$AX$9 -> 14:04:00
A17: =INDIRECT($A$1&"!$AG9") -> 11.2 | D17: =MAI_2022!AG7 -> 2022-05-23 | I17: =I14-I16 -> 07:56:00
D21: =NOW() -> 2022-05-25T18:55:23.240 | G21: =MAI_2022!L7 -> 2022-05-05 | H21: =MAI_2022!P7 -> 2022-05-18

Sheet MOIS
A1: =MAI_2022!C5 -> Mai_2022
B3: Jours de pluie + de 2mm | E3: Jours de soleil + de 4h
A9: 31 | D9: 31 | F9: 31
A10: 0 | D10: 0 | F10: 0
A11: =C51 -> 1 | D11: =C50 -> 24 | F11: =C58 -> 
A12: =A9-A10-A11 -> 30 | D12: =D9-D10-D11 -> 7 | F12: =F9-F10-F11 -> 
B21: =NOW() -> 2022-05-25T18:55:23.240
B23: Heures de pluie | E23: Heures de soleil
A29: 2.5 | D29: 22.08333333
A30: 00:00:00 | D30: 00:00:00 | F30: 22.08333333
A31: =B48 -> 0.3868055556 | D31: =C48 -> 12.81388889 | F31: 00:00:00
A32: =A29-A31 -> 2.113194444 | D32: =D29-D31 -> 9.269444444 | F32: =C56 -> 
F33: =F30-F32 -> 
E44: Vent fort au-dessus de
E45: 50km/h
B46: Temps Pluie | C46: H de soleil
A48: Total | B48: =MAI_2022!AI5 -> 0.3868055556 | C48: =MAI_2022!AX5 -> 12.81388889
B49: Jours de pluie
A50: Soleil | C50: =COUNTIF(INDIRECT($A$1&"!$AX11:$AX71"),">4:00") -> 24
A51: Pluie | C51: =COUNTIF(INDIRECT($A$1&"!$Ai11:$Ai71"),">4:00") -> 1 | G51: 31
G52: 0
A53: Nb | G53: =C59 -> 
G54: =G51-G52-G53 -> 
A55: Vent
A56: Nb d'heures < 1.1 km/h | C56: =MAI_2022!#REF! -> 
A57: Nb de jours plus petit que 20km/h | C57: =SUM(#REF!) -> 
A58: Nb de jours entre 20 et 50 km/h | C58: =SUM(#REF!) -> 
A59: Nb de jours plus grand que 50km/h | C59: =SUM(#REF!) -> 

Sheet CONSOLE
C1: Marées | E1: https://marine.meteoconsult.fr/meteo-marine/horaires-maree-la-tranche-sur-mer-1083-0.php
A3: Lune | G3: Marée haute | H3: 02:14:00
A4: Dernier Croissant | E4: Températures Lune Chaleur solaire = T°+2° Vitesse du vent | G4: Marée haute | H4: 14:58:00
G6: Coeff | H6: 54
H7: 57
G9: Marée basse | H9: 07:44:00
G10: Marée basse | H10: 20:16:00
G13: T° de l'eau | H13: 18
E14: Température ressentie Vent en rafale :
A15: Conditions | E15: Dernière mise à jour : Vent moyen : | G15: Heures Soleil | H15: 06:22:00
A16: Petite Pluie | E16: Pluie | H16: 21:43:00
E17: Heures des marées Statistiques Journée Mois Année | G17: Total | H17: 15:14:00
A18: Ensoleillé
A19: Peux nuageux | G19: T° extérieure | H19: =INDEX(RELEVÉS!$B9:$B50000,COUNTA(RELEVÉS!$B9:$B50000)) -> 15.5
A20: Nuageux | G20: T° ressentie | H20: =INDEX(RELEVÉS!$D9:$D50000,COUNTA(RELEVÉS!$D9:$D50000)) -> 15.5
A21: Très nuageux
A22: Petite pluie | G22: Vent journée | H22: =RELEVÉS!Q5+5 -> 18
A23: Grosse pluie | G23: Vent moyen | H23: =RELEVÉS!U5+5 -> 9.450724638
A24: Orageux | G24: Vent console | H24: 14.8
A25: Brouillard | G25: Vent rafale | H25: =H24+10 -> 24.8
A26: Neige
A27: Nuit dégagée
A28: Nuit Nuageuse
E31: =NOW() -> 2022-05-25T18:55:23.240
C32: T° de l'eau | E32: https://fr.surf-forecast.com/breaks/La-Tranchesur-Mer/seatemp
C33: Site | E33: http:///meteofloralies.free.fr

Sheet GRAPHIQUES
C1: Dernière mise à jour le : | F1: =NOW() -> 2022-05-25T18:55:23.240
C2: Température extérieure | I2: Température Mini et Maxi extérieure
C6: Précipitations | I6: Précipitations
C10: Vitesse du vent de la journée | I10: Vitesse du vent
C13: Vitesse du vent
I16: Nombre d'heures de soleil
C21: Chaleur solaire

Sheet Liste_shapes
A2: HublotLune | B2: 13 | C2: 78.75 | D2: 317.25 | E2: 128.25 | F2: 129.75
A3: hublot_Lune | B3: 13 | C3: 78 | D3: 157.5 | E3: 128.25 | F3: 127.5
A4: Image 3 | B4: 13 | C4: 486 | D4: 58.5 | E4: 21 | F4: 29.25
A5: Image 15 | B5: 13 | C5: 33 | D5: 131.25 | E5: 34.5 | F5: 39
A6: Image 21 | B6: 13 | C6: 75.75 | D6: 477.75 | E6: 128.25 | F6: 127.5
A7: Image 24 | B7: 13 | C7: 90 | D7: 794.25 | E7: 103.5 | F7: 105
A8: Image 25 | B8: 13 | C8: 312 | D8: 164.25 | E8: 141.75 | F8: 239.25
A9: Image 26 | B9: 13 | C9: 312.75 | D9: 423.75 | E9: 141.75 | F9: 236.25
A10: Rectangle 131 | B10: 1 | C10: 312.0000916 | D10: 768 | E10: 141.7322845 | F10: 52.44094467
A11: Graphique 132 | B11: 3 | C11: 315.75 | D11: 764.25 | E11: 141.75 | F11: 56.25
A12: Rectangle 135 | B12: 1 | C12: 312.3748779 | D12: 685.5230103 | E12: 141.7322845 | F12: 52.44094467
A13: Graphique 136 | B13: 3 | C13: 313.5 | D13: 683.25 | E13: 141.75 | F13: 54.75
A14: Rectangle 137 | B14: 1 | C14: 312.0000916 | D14: 847.5 | E14: 141.7322845 | F14: 52.44094467
A15: Graphique 138 | B15: 3 | C15: 314.25 | D15: 845.25 | E15: 141.75 | F15: 59.25
A16: TextBox 143 | B16: 17 | C16: 297 | D16: 685.5 | E16: 15.75 | F16: 51.02362061
A17: TextBox 144 | B17: 17 | C17: 297.0000916 | D17: 843 | E17: 16.5 | F17: 62.25
A18: TextBox 146 | B18: 17 | C18: 297 | D18: 766.5 | E18: 15.75 | F18: 53.85826874
A19: Groupe 46 | B19: 6 | C19: 309.75 | D19: 684 | E19: 144 | F19: 54
A20: Groupe 179 | B20: 6 | C20: 311.25 | D20: 767.25 | E20: 144.75 | F20: 54
A21: Groupe 189 | B21: 6 | C21: 312 | D21: 846.75 | E21: 144.75 | F21: 54.75
A22: TextBox 47 | B22: 17 | C22: 97.5 | D22: 200.9999237 | E22: 18.75 | F22: 62.36220551
A23: TextBox 208 | B23: 17 | C23: 160.5 | D23: 201.75 | E23: 19.5 | F23: 62.36220551
A24: TextBox 12 | B24: 17 | C24: 123 | D24: 168.75 | E24: 33 | F24: 101.25
A25: TextBox 27 | B25: 17 | C25: 328.5 | D25: 180.75 | E25: 14.17322826 | F25: 93
A26: TextBox 164 | B26: 17 | C26: 343.5000916 | D26: 180.7500763 | E26: 14.17322826 | F26: 93
A27: TextBox 173 | B27: 17 | C27: 328.8749695 | D27: 289.8766174 | E27: 14.17322826 | F27: 52.12338638
A28: TextBox 174 | B28: 17 | C28: 342.75 | D28: 283.4999084 | E28: 14.92322826 | F28: 57.75
A29: TextBox 175 | B29: 17 | C29: 329.25 | D29: 348.75 | E29: 14.17330742 | F29: 43.49991989
A30: TextBox 176 | B30: 17 | C30: 344.25 | D30: 356.6251831 | E30: 14.17322826 | F30: 31.87488174
A31: TextBox 28 | B31: 17 | C31: 323.6251221 | D31: 436.8750305 | E31: 115.8749619 | F31: 205.1249542
A32: TextBox 148 | B32: 17 | C32: 368.6248169 | D32: 188.9993744 | E32: 14.17322826 | F32: 142.8751221
A33: TextBox 149 | B33: 17 | C33: 369 | D33: 332.9993591 | E33: 14.17330742 | F33: 57.00062943
A34: TextBox 150 | B34: 17 | C34: 410.25 | D34: 199.5 | E34: 14.17322826 | F34: 93
A35: TextBox 151 | B35: 17 | C35: 425.2500916 | D35: 199.5000763 | E35: 14.17322826 | F35: 93
A36: TextBox 152 | B36: 17 | C36: 413.25 | D36: 302.2500916 | E36: 11.54818916 | F36: 58.5
A37: TextBox 153 | B37: 17 | C37: 426.75 | D37: 302.25 | E37: 12.67322826 | F37: 57.03244019
A38: TextBox 31 | B38: 17 | C38: 234 | D38: 185.2499237 | E38: 28.5 | F38: 63.75
A39: TextBox 155 | B39: 17 | C39: 120.75 | D39: 497.25 | E39: 33 | F39: 86.25
A40: TextBox 161 | B40: 17 | C40: 125.25 | D40: 797.25 | E40: 33 | F40: 99.75
A41: TextBox 18 | B41: 17 | C41: 234.0000763 | D41: 513.7496948 | E41: 27.75 | F41: 243.0002289
A42: Image 162 | B42: 13 | C42: 481.5 | D42: 16.5 | E42: 30 | F42: 33.75
A43: TextBox 1 | B43: 17 | C43: 92.6521225 | D43: 507 | E43: 24.52724457 | F43: 67.5
A44: TextBox 95 | B44: 17 | C44: 161.25 | D44: 507.75 | E44: 24.52724457 | F44: 67.5
A45: TextBox 97 | B45: 17 | C45: 344.25 | D45: 348.75 | E45: 14.17322826 | F45: 39.37488174
A46: TextBox 99 | B46: 17 | C46: 214.5000763 | D46: 837.75 | E46: 22.4999218 | F46: 81
A47: TextBox 98 | B47: 17 | C47: 234 | D47: 837.75 | E47: 27.75 | F47: 78.75
A48: TextBox 101 | B48: 17 | C48: 206.25 | D48: 513.75 | E48: 20.25 | F48: 53.25
A49: TextBox 2 | B49: 17 | C49: 55.5 | D49: 647.249939 | E49: 15 | F49: 99.21260071
A50: Button 65 | B50: 8 | C50: 450.75 | D50: 945 | E50: 30.75 | F50: 60
A51: Très_Nuageu | B51: 13 | C51: 84.75 | D51: 644.25 | E51: 113.25 | F51: 112.5
A52: Group 156 | B52: 6 | C52: 86.25 | D52: 0.75 | E52: 111.75 | F52: 107.25
A53: Group 155 | B53: 6 | C53: 282.75 | D53: 0.75 | E53: 189 | F53: 104.25
A54: Nuit_Claire | B54: 13 | C54: 84.75 | D54: 644.25 | E54: 111.75 | F54: 112.5
A55: Neige | B55: 13 | C55: 84.75 | D55: 644.25 | E55: 111.75 | F55: 112.5
A56: Brouillar | B56: 13 | C56: 84.75 | D56: 644.25 | E56: 110.25 | F56: 111
A57: Orage | B57: 13 | C57: 84.75 | D57: 644.25 | E57: 112.5 | F57: 112.5
A58: Grosse_Plui | B58: 13 | C58: 84.75 | D58: 644.25 | E58: 112.5 | F58: 109.5
A59: Pleine_lune | B59: 13 | C59: 128.25 | D59: 367.5 | E59: 30 | F59: 30
A60: Nouvelle_lune | B60: 13 | C60: 127.5 | D60: 366.75 | E60: 30 | F60: 30
A61: Premier_Quartier | B61: 13 | C61: 126.75 | D61: 366.75 | E61: 30 | F61: 30
A62: Nuit_Sombre | B62: 13 | C62: 86.25 | D62: 642.75 | E62: 110.25 | F62: 113.25
A63: Premier_croissant | B63: 13 | C63: 125.25 | D63: 366.75 | E63: 30 | F63: 30
A64: Dernier_Quartier | B64: 13 | C64: 127.5 | D64: 366.75 | E64: 30 | F64: 30
A65: Dernier_Croissant | B65: 13 | C65: 126.75 | D65: 366 | E65: 30 | F65: 30
A66: Peu_nuageu | B66: 13 | C66: 84.75 | D66: 644.25 | E66: 113.25 | F66: 112.5
A67: Nuageu | B67: 13 | C67: 84.75 | D67: 644.25 | E67: 113.25 | F67: 112.5
A68: Picture 3 | B68: 13 | C68: 84.75 | D68: 642.750061 | E68: 111.7899246 | F68: 113.3858261
A69: Petite_Plui | B69: 13 | C69: 84.75 | D69: 644.25 | E69: 112.5 | F69: 111.75
A70: hublot_conditions | B70: 13 | C70: 75 | D70: 636.75 | E70: 130.5 | F70: 132
